Workbook

Sheet Display
F2: CQG Industrial Select Sector SPDR® ETF | AB2: =RTD("cqg.rtd", ,"SystemInfo", "Linetime") -> 45866.2678
B5: Exchange Traded Funds Performance | S5: Top 15 Performing Companies
B6: Symbol | C6: Description | H6: Last | I6: NC | J6: %NC | K6: NC/ATR | L6: Open | M6: High | N6: Low | O6: Volume | Q6: Ratio
B7: XLI | C7: =RTD("cqg.rtd", ,"ContractData",B7, "LongDescription",, "T") -> Industrial Select Sector SPDR | H7: =RTD("cqg.rtd", ,"ContractData",B7, "LastTradeToday",, "T") ->  | I7: =RTD("cqg.rtd", ,"ContractData",B7, "NetLastTradeToday",, "T") ->  | J7: =IFERROR(RTD("cqg.rtd", ,"ContractData",B7, "PerCentNetLastTrade",, "T")/100,"") ->  | K7: =IFERROR(I7/RTD("cqg.rtd",,"StudyData",B7, "ATR", "MaType=Sim,Period=10", "ATR","D","-1","ALL",,,"FALSE","T")/100,"") ->  | L7: =RTD("cqg.rtd", ,"ContractData",B7, "OPen",, "T") ->  | M7: =RTD("cqg.rtd", ,"ContractData", B7, "HIgh",, "T") ->  | N7: =RTD("cqg.rtd", ,"ContractData",B7, "LOw",, "T") ->  | O7: =RTD("cqg.rtd", ,"ContractData",B7, "T_CVol",, "T") -> 4660 | Q7: =IFERROR(O7/RTD("cqg.rtd",,"StudyData",B7, "MA", "InputChoice=Vol,MAType=Sim,Period=21", "MA","D","-1","all",,,,"T"),"") -> 0.000428862901
B8: SPY | C8: =RTD("cqg.rtd", ,"ContractData",B8, "LongDescription",, "T") -> SPDR S&P 500 | H8: =RTD("cqg.rtd", ,"ContractData",B8, "LastTradeToday",, "T") ->  | I8: =RTD("cqg.rtd", ,"ContractData",B8, "NetLastTradeToday",, "T") ->  | J8: =IFERROR(RTD("cqg.rtd", ,"ContractData",B8, "PerCentNetLastTrade",, "T")/100,"") ->  | K8: =IFERROR(I8/RTD("cqg.rtd",,"StudyData",B8, "ATR", "MaType=Sim,Period=10", "ATR","D","-1","ALL",,,"FALSE","T")/100,"") ->  | L8: =RTD("cqg.rtd", ,"ContractData",B8, "OPen",, "T") ->  | M8: =RTD("cqg.rtd", ,"ContractData", B8, "HIgh",, "T") ->  | N8: =RTD("cqg.rtd", ,"ContractData",B8, "LOw",, "T") ->  | O8: =RTD("cqg.rtd", ,"ContractData",B8, "T_CVol",, "T") -> 256954 | Q8: =IFERROR(O8/RTD("cqg.rtd",,"StudyData",B8, "MA", "InputChoice=Vol,MAType=Sim,Period=21", "MA","D","-1","all",,,,"T"),"") -> 0.003752790232
B9: XLF | C9: =RTD("cqg.rtd", ,"ContractData",B9, "LongDescription",, "T") -> Financial Select Sector SPDR | H9: =RTD("cqg.rtd", ,"ContractData",B9, "LastTradeToday",, "T") ->  | I9: =RTD("cqg.rtd", ,"ContractData",B9, "NetLastTradeToday",, "T") ->  | J9: =IFERROR(RTD("cqg.rtd", ,"ContractData",B9, "PerCentNetLastTrade",, "T")/100,"") ->  | K9: =IFERROR(I9/RTD("cqg.rtd",,"StudyData",B9, "ATR", "MaType=Sim,Period=10", "ATR","D","-1","ALL",,,"FALSE","T")/100,"") ->  | L9: =RTD("cqg.rtd", ,"ContractData",B9, "OPen",, "T") ->  | M9: =RTD("cqg.rtd", ,"ContractData", B9, "HIgh",, "T") ->  | N9: =RTD("cqg.rtd", ,"ContractData",B9, "LOw",, "T") ->  | O9: =RTD("cqg.rtd", ,"ContractData",B9, "T_CVol",, "T") -> 26953 | Q9: =IFERROR(O9/RTD("cqg.rtd",,"StudyData",B9, "MA", "InputChoice=Vol,MAType=Sim,Period=21", "MA","D","-1","all",,,,"T"),"") -> 0.000739694188
B10: S.XLY | C10: =RTD("cqg.rtd", ,"ContractData",B10, "LongDescription",, "T") -> Consumer Discretionary Select SectorSPDR | H10: =RTD("cqg.rtd", ,"ContractData",B10, "LastTradeToday",, "T") ->  | I10: =RTD("cqg.rtd", ,"ContractData",B10, "NetLastTradeToday",, "T") ->  | J10: =IFERROR(RTD("cqg.rtd", ,"ContractData",B10, "PerCentNetLastTrade",, "T")/100,"") ->  | K10: =IFERROR(I10/RTD("cqg.rtd",,"StudyData",B10, "ATR", "MaType=Sim,Period=10", "ATR","D","-1","ALL",,,"FALSE","T")/100,"") ->  | L10: =RTD("cqg.rtd", ,"ContractData",B10, "OPen",, "T") ->  | M10: =RTD("cqg.rtd", ,"ContractData", B10, "HIgh",, "T") ->  | N10: =RTD("cqg.rtd", ,"ContractData",B10, "LOw",, "T") ->  | O10: =RTD("cqg.rtd", ,"ContractData",B10, "T_CVol",, "T") -> 493 | Q10: =IFERROR(O10/RTD("cqg.rtd",,"StudyData",B10, "MA", "InputChoice=Vol,MAType=Sim,Period=21", "MA","D","-1","all",,,,"T"),"") -> 0.0001032081176
B11: S.FXI | C11: =RTD("cqg.rtd", ,"ContractData",B11, "LongDescription",, "T") -> iShares China Large-Cap ETF | H11: =RTD("cqg.rtd", ,"ContractData",B11, "LastTradeToday",, "T") ->  | I11: =RTD("cqg.rtd", ,"ContractData",B11, "NetLastTradeToday",, "T") ->  | J11: =IFERROR(RTD("cqg.rtd", ,"ContractData",B11, "PerCentNetLastTrade",, "T")/100,"") ->  | K11: =IFERROR(I11/RTD("cqg.rtd",,"StudyData",B11, "ATR", "MaType=Sim,Period=10", "ATR","D","-1","ALL",,,"FALSE","T")/100,"") ->  | L11: =RTD("cqg.rtd", ,"ContractData",B11, "OPen",, "T") ->  | M11: =RTD("cqg.rtd", ,"ContractData", B11, "HIgh",, "T") ->  | N11: =RTD("cqg.rtd", ,"ContractData",B11, "LOw",, "T") ->  | O11: =RTD("cqg.rtd", ,"ContractData",B11, "T_CVol",, "T") -> 292615 | Q11: =IFERROR(O11/RTD("cqg.rtd",,"StudyData",B11, "MA", "InputChoice=Vol,MAType=Sim,Period=21", "MA","D","-1","all",,,,"T"),"") -> 0.01168468149
B12: IWF | C12: =RTD("cqg.rtd", ,"ContractData",B12, "LongDescription",, "T") -> iShares Russell 1000 Growth ETF | H12: =RTD("cqg.rtd", ,"ContractData",B12, "LastTradeToday",, "T") ->  | I12: =RTD("cqg.rtd", ,"ContractData",B12, "NetLastTradeToday",, "T") ->  | J12: =IFERROR(RTD("cqg.rtd", ,"ContractData",B12, "PerCentNetLastTrade",, "T")/100,"") ->  | K12: =IFERROR(I12/RTD("cqg.rtd",,"StudyData",B12, "ATR", "MaType=Sim,Period=10", "ATR","D","-1","ALL",,,"FALSE","T")/100,"") ->  | L12: =RTD("cqg.rtd", ,"ContractData",B12, "OPen",, "T") ->  | M12: =RTD("cqg.rtd", ,"ContractData", B12, "HIgh",, "T") ->  | N12: =RTD("cqg.rtd", ,"ContractData",B12, "LOw",, "T") ->  | O12: =RTD("cqg.rtd", ,"ContractData",B12, "T_CVol",, "T") -> 0 | Q12: =IFERROR(O12/RTD("cqg.rtd",,"StudyData",B12, "MA", "InputChoice=Vol,MAType=Sim,Period=21", "MA","D","-1","all",,,,"T"),"") -> 0
B13: IWO | C13: =RTD("cqg.rtd", ,"ContractData",B13, "LongDescription",, "T") -> iShares Russell 2000 Growth ETF | H13: =RTD("cqg.rtd", ,"ContractData",B13, "LastTradeToday",, "T") ->  | I13: =RTD("cqg.rtd", ,"ContractData",B13, "NetLastTradeToday",, "T") ->  | J13: =IFERROR(RTD("cqg.rtd", ,"ContractData",B13, "PerCentNetLastTrade",, "T")/100,"") ->  | K13: =IFERROR(I13/RTD("cqg.rtd",,"StudyData",B13, "ATR", "MaType=Sim,Period=10", "ATR","D","-1","ALL",,,"FALSE","T")/100,"") ->  | L13: =RTD("cqg.rtd", ,"ContractData",B13, "OPen",, "T") ->  | M13: =RTD("cqg.rtd", ,"ContractData", B13, "HIgh",, "T") ->  | N13: =RTD("cqg.rtd", ,"ContractData",B13, "LOw",, "T") ->  | O13: =RTD("cqg.rtd", ,"ContractData",B13, "T_CVol",, "T") -> 11 | Q13: =IFERROR(O13/RTD("cqg.rtd",,"StudyData",B13, "MA", "InputChoice=Vol,MAType=Sim,Period=21", "MA","D","-1","all",,,,"T"),"") -> 2.819525814e-05
B14: EP | C14: =RTD("cqg.rtd", ,"ContractData",B14, "LongDescription",, "T") -> E-Mini S&P 500, Sep 25 | H14: =RTD("cqg.rtd", ,"ContractData",B14, "LastTradeToday",, "T") -> 6436 | I14: =RTD("cqg.rtd", ,"ContractData",B14, "NetLastTradeToday",, "T") -> 11 | J14: =IFERROR(RTD("cqg.rtd", ,"ContractData",B14, "PerCentNetLastTrade",, "T")/100,"") -> 0.001712062257 | K14: =IFERROR(I14/RTD("cqg.rtd",,"StudyData",B14, "ATR", "MaType=Sim,Period=10", "ATR","D","-1","ALL",,,"FALSE","T")/100,"") -> 0.002268041237 | L14: =RTD("cqg.rtd", ,"ContractData",B14, "OPen",, "T") -> 6450 | M14: =RTD("cqg.rtd", ,"ContractData", B14, "HIgh",, "T") -> 6457.75 | N14: =RTD("cqg.rtd", ,"ContractData",B14, "LOw",, "T") -> 6433.5 | O14: =RTD("cqg.rtd", ,"ContractData",B14, "T_CVol",, "T") -> 96653 | Q14: =IFERROR(O14/RTD("cqg.rtd",,"StudyData",B14, "MA", "InputChoice=Vol,MAType=Sim,Period=21", "MA","D","-1","all",,,,"T"),"") -> 0.08649109163
B15: XLE | C15: =RTD("cqg.rtd", ,"ContractData",B15, "LongDescription",, "T") -> Energy Select Sector SPDR | H15: =RTD("cqg.rtd", ,"ContractData",B15, "LastTradeToday",, "T") ->  | I15: =RTD("cqg.rtd", ,"ContractData",B15, "NetLastTradeToday",, "T") ->  | J15: =IFERROR(RTD("cqg.rtd", ,"ContractData",B15, "PerCentNetLastTrade",, "T")/100,"") ->  | K15: =IFERROR(I15/RTD("cqg.rtd",,"StudyData",B15, "ATR", "MaType=Sim,Period=10", "ATR","D","-1","ALL",,,"FALSE","T")/100,"") ->  | L15: =RTD("cqg.rtd", ,"ContractData",B15, "OPen",, "T") ->  | M15: =RTD("cqg.rtd", ,"ContractData", B15, "HIgh",, "T") ->  | N15: =RTD("cqg.rtd", ,"ContractData",B15, "LOw",, "T") ->  | O15: =RTD("cqg.rtd", ,"ContractData",B15, "T_CVol",, "T") -> 17808 | Q15: =IFERROR(O15/RTD("cqg.rtd",,"StudyData",B15, "MA", "InputChoice=Vol,MAType=Sim,Period=21", "MA","D","-1","all",,,,"T"),"") -> 0.001058645732
B16: USO | C16: =RTD("cqg.rtd", ,"ContractData",B16, "LongDescription",, "T") -> United States Oil Fund | H16: =RTD("cqg.rtd", ,"ContractData",B16, "LastTradeToday",, "T") ->  | I16: =RTD("cqg.rtd", ,"ContractData",B16, "NetLastTradeToday",, "T") ->  | J16: =IFERROR(RTD("cqg.rtd", ,"ContractData",B16, "PerCentNetLastTrade",, "T")/100,"") ->  | K16: =IFERROR(I16/RTD("cqg.rtd",,"StudyData",B16, "ATR", "MaType=Sim,Period=10", "ATR","D","-1","ALL",,,"FALSE","T")/100,"") ->  | L16: =RTD("cqg.rtd", ,"ContractData",B16, "OPen",, "T") ->  | M16: =RTD("cqg.rtd", ,"ContractData", B16, "HIgh",, "T") ->  | N16: =RTD("cqg.rtd", ,"ContractData",B16, "LOw",, "T") ->  | O16: =RTD("cqg.rtd", ,"ContractData",B16, "T_CVol",, "T") -> 88113 | Q16: =IFERROR(O16/RTD("cqg.rtd",,"StudyData",B16, "MA", "InputChoice=Vol,MAType=Sim,Period=21", "MA","D","-1","all",,,,"T"),"") -> 0.01541433823
C17: Top 15 Description | H17: Last | I17: NC | J17: %NC | K17: NC/ATR | L17: Open | M17: High | N17: Low | O17: Volume | Q17: Ratio
A18: =TRIM(XLI!O1) ->  | B18: News | C18: =IFERROR(RTD("cqg.rtd", ,"ContractData",A18, "LongDescription",, "T")&" ("&RIGHT(A18,LEN(A18)-5)&")","") ->  | H18: =IFERROR(RTD("cqg.rtd", ,"ContractData",A18, "LastTradeToday",, "T"),"") ->  | I18: =IFERROR(RTD("cqg.rtd", ,"ContractData",A18, "NetLastTradeToday",, "T"),"") ->  | J18: =IFERROR(RTD("cqg.rtd", ,"ContractData",A18, "PerCentNetLastTrade",, "T")/100,"") ->  | K18: =IFERROR(I18/RTD("cqg.rtd",,"StudyData",A18, "ATR", "MaType=Sim,Period=10", "ATR","D","-1","ALL",,,"FALSE","T")/100,"") ->  | L18: =IFERROR(RTD("cqg.rtd", ,"ContractData",A18, "OPen",, "T"),"") ->  | M18: =IFERROR(RTD("cqg.rtd", ,"ContractData", A18, "HIgh",, "T"),"") ->  | N18: =IFERROR(RTD("cqg.rtd", ,"ContractData",A18, "LOw",, "T"),"") ->  | O18: =IFERROR(RTD("cqg.rtd", ,"ContractData",A18, "T_CVol",, "T"),"") ->  | Q18: =IFERROR(O18/RTD("cqg.rtd",,"StudyData",A18, "MA", "InputChoice=Vol,MAType=Sim,Period=21", "MA","D","-1","all",,,,"T"),"") ->  | R18: =XLI!R1 -> 
A19: =TRIM(XLI!O2) ->  | B19: News | C19: =IFERROR(RTD("cqg.rtd", ,"ContractData",A19, "LongDescription",, "T")&" ("&RIGHT(A19,LEN(A19)-5)&")","") ->  | H19: =IFERROR(RTD("cqg.rtd", ,"ContractData",A19, "LastTradeToday",, "T"),"") ->  | I19: =IFERROR(RTD("cqg.rtd", ,"ContractData",A19, "NetLastTradeToday",, "T"),"") ->  | J19: =IFERROR(RTD("cqg.rtd", ,"ContractData",A19, "PerCentNetLastTrade",, "T")/100,"") ->  | K19: =IFERROR(I19/RTD("cqg.rtd",,"StudyData",A19, "ATR", "MaType=Sim,Period=10", "ATR","D","-1","ALL",,,"FALSE","T")/100,"") ->  | L19: =IFERROR(RTD("cqg.rtd", ,"ContractData",A19, "OPen",, "T"),"") ->  | M19: =IFERROR(RTD("cqg.rtd", ,"ContractData", A19, "HIgh",, "T"),"") ->  | N19: =IFERROR(RTD("cqg.rtd", ,"ContractData",A19, "LOw",, "T"),"") ->  | O19: =IFERROR(RTD("cqg.rtd", ,"ContractData",A19, "T_CVol",, "T"),"") ->  | Q19: =IFERROR(O19/RTD("cqg.rtd",,"StudyData",A19, "MA", "InputChoice=Vol,MAType=Sim,Period=21", "MA","D","-1","all",,,,"T"),"") ->  | R19: =XLI!R2 -> 
A20: =TRIM(XLI!O3) ->  | B20: News | C20: =IFERROR(RTD("cqg.rtd", ,"ContractData",A20, "LongDescription",, "T")&" ("&RIGHT(A20,LEN(A20)-5)&")","") ->  | H20: =IFERROR(RTD("cqg.rtd", ,"ContractData",A20, "LastTradeToday",, "T"),"") ->  | I20: =IFERROR(RTD("cqg.rtd", ,"ContractData",A20, "NetLastTradeToday",, "T"),"") ->  | J20: =IFERROR(RTD("cqg.rtd", ,"ContractData",A20, "PerCentNetLastTrade",, "T")/100,"") ->  | K20: =IFERROR(I20/RTD("cqg.rtd",,"StudyData",A20, "ATR", "MaType=Sim,Period=10", "ATR","D","-1","ALL",,,"FALSE","T")/100,"") ->  | L20: =IFERROR(RTD("cqg.rtd", ,"ContractData",A20, "OPen",, "T"),"") ->  | M20: =IFERROR(RTD("cqg.rtd", ,"ContractData", A20, "HIgh",, "T"),"") ->  | N20: =IFERROR(RTD("cqg.rtd", ,"ContractData",A20, "LOw",, "T"),"") ->  | O20: =IFERROR(RTD("cqg.rtd", ,"ContractData",A20, "T_CVol",, "T"),"") ->  | Q20: =IFERROR(O20/RTD("cqg.rtd",,"StudyData",A20, "MA", "InputChoice=Vol,MAType=Sim,Period=21", "MA","D","-1","all",,,,"T"),"") ->  | R20: =XLI!R3 -> 
A21: =TRIM(XLI!O4) ->  | B21: News | C21: =IFERROR(RTD("cqg.rtd", ,"ContractData",A21, "LongDescription",, "T")&" ("&RIGHT(A21,LEN(A21)-5)&")","") ->  | H21: =IFERROR(RTD("cqg.rtd", ,"ContractData",A21, "LastTradeToday",, "T"),"") ->  | I21: =IFERROR(RTD("cqg.rtd", ,"ContractData",A21, "NetLastTradeToday",, "T"),"") ->  | J21: =IFERROR(RTD("cqg.rtd", ,"ContractData",A21, "PerCentNetLastTrade",, "T")/100,"") ->  | K21: =IFERROR(I21/RTD("cqg.rtd",,"StudyData",A21, "ATR", "MaType=Sim,Period=10", "ATR","D","-1","ALL",,,"FALSE","T")/100,"") ->  | L21: =IFERROR(RTD("cqg.rtd", ,"ContractData",A21, "OPen",, "T"),"") ->  | M21: =IFERROR(RTD("cqg.rtd", ,"ContractData", A21, "HIgh",, "T"),"") ->  | N21: =IFERROR(RTD("cqg.rtd", ,"ContractData",A21, "LOw",, "T"),"") ->  | O21: =IFERROR(RTD("cqg.rtd", ,"ContractData",A21, "T_CVol",, "T"),"") ->  | Q21: =IFERROR(O21/RTD("cqg.rtd",,"StudyData",A21, "MA", "InputChoice=Vol,MAType=Sim,Period=21", "MA","D","-1","all",,,,"T"),"") ->  | R21: =XLI!R4 -> 
A22: =TRIM(XLI!O5) ->  | B22: News | C22: =IFERROR(RTD("cqg.rtd", ,"ContractData",A22, "LongDescription",, "T")&" ("&RIGHT(A22,LEN(A22)-5)&")","") ->  | H22: =IFERROR(RTD("cqg.rtd", ,"ContractData",A22, "LastTradeToday",, "T"),"") ->  | I22: =IFERROR(RTD("cqg.rtd", ,"ContractData",A22, "NetLastTradeToday",, "T"),"") ->  | J22: =IFERROR(RTD("cqg.rtd", ,"ContractData",A22, "PerCentNetLastTrade",, "T")/100,"") ->  | K22: =IFERROR(I22/RTD("cqg.rtd",,"StudyData",A22, "ATR", "MaType=Sim,Period=10", "ATR","D","-1","ALL",,,"FALSE","T")/100,"") ->  | L22: =IFERROR(RTD("cqg.rtd", ,"ContractData",A22, "OPen",, "T"),"") ->  | M22: =IFERROR(RTD("cqg.rtd", ,"ContractData", A22, "HIgh",, "T"),"") ->  | N22: =IFERROR(RTD("cqg.rtd", ,"ContractData",A22, "LOw",, "T"),"") ->  | O22: =IFERROR(RTD("cqg.rtd", ,"ContractData",A22, "T_CVol",, "T"),"") ->  | Q22: =IFERROR(O22/RTD("cqg.rtd",,"StudyData",A22, "MA", "InputChoice=Vol,MAType=Sim,Period=21", "MA","D","-1","all",,,,"T"),"") ->  | R22: =XLI!R5 -> 
A23: =TRIM(XLI!O6) ->  | B23: News | C23: =IFERROR(RTD("cqg.rtd", ,"ContractData",A23, "LongDescription",, "T")&" ("&RIGHT(A23,LEN(A23)-5)&")","") ->  | H23: =IFERROR(RTD("cqg.rtd", ,"ContractData",A23, "LastTradeToday",, "T"),"") ->  | I23: =IFERROR(RTD("cqg.rtd", ,"ContractData",A23, "NetLastTradeToday",, "T"),"") ->  | J23: =IFERROR(RTD("cqg.rtd", ,"ContractData",A23, "PerCentNetLastTrade",, "T")/100,"") ->  | K23: =IFERROR(I23/RTD("cqg.rtd",,"StudyData",A23, "ATR", "MaType=Sim,Period=10", "ATR","D","-1","ALL",,,"FALSE","T")/100,"") ->  | L23: =IFERROR(RTD("cqg.rtd", ,"ContractData",A23, "OPen",, "T"),"") ->  | M23: =IFERROR(RTD("cqg.rtd", ,"ContractData", A23, "HIgh",, "T"),"") ->  | N23: =IFERROR(RTD("cqg.rtd", ,"ContractData",A23, "LOw",, "T"),"") ->  | O23: =IFERROR(RTD("cqg.rtd", ,"ContractData",A23, "T_CVol",, "T"),"") ->  | Q23: =IFERROR(O23/RTD("cqg.rtd",,"StudyData",A23, "MA", "InputChoice=Vol,MAType=Sim,Period=21", "MA","D","-1","all",,,,"T"),"") ->  | R23: =XLI!R6 -> 
A24: =TRIM(XLI!O7) ->  | B24: News | C24: =IFERROR(RTD("cqg.rtd", ,"ContractData",A24, "LongDescription",, "T")&" ("&RIGHT(A24,LEN(A24)-5)&")","") ->  | H24: =IFERROR(RTD("cqg.rtd", ,"ContractData",A24, "LastTradeToday",, "T"),"") ->  | I24: =IFERROR(RTD("cqg.rtd", ,"ContractData",A24, "NetLastTradeToday",, "T"),"") ->  | J24: =IFERROR(RTD("cqg.rtd", ,"ContractData",A24, "PerCentNetLastTrade",, "T")/100,"") ->  | K24: =IFERROR(I24/RTD("cqg.rtd",,"StudyData",A24, "ATR", "MaType=Sim,Period=10", "ATR","D","-1","ALL",,,"FALSE","T")/100,"") ->  | L24: =IFERROR(RTD("cqg.rtd", ,"ContractData",A24, "OPen",, "T"),"") ->  | M24: =IFERROR(RTD("cqg.rtd", ,"ContractData", A24, "HIgh",, "T"),"") ->  | N24: =IFERROR(RTD("cqg.rtd", ,"ContractData",A24, "LOw",, "T"),"") ->  | O24: =IFERROR(RTD("cqg.rtd", ,"ContractData",A24, "T_CVol",, "T"),"") ->  | Q24: =IFERROR(O24/RTD("cqg.rtd",,"StudyData",A24, "MA", "InputChoice=Vol,MAType=Sim,Period=21", "MA","D","-1","all",,,,"T"),"") ->  | R24: =XLI!R7 -> 
A25: =TRIM(XLI!O8) ->  | B25: News | C25: =IFERROR(RTD("cqg.rtd", ,"ContractData",A25, "LongDescription",, "T")&" ("&RIGHT(A25,LEN(A25)-5)&")","") ->  | H25: =IFERROR(RTD("cqg.rtd", ,"ContractData",A25, "LastTradeToday",, "T"),"") ->  | I25: =IFERROR(RTD("cqg.rtd", ,"ContractData",A25, "NetLastTradeToday",, "T"),"") ->  | J25: =IFERROR(RTD("cqg.rtd", ,"ContractData",A25, "PerCentNetLastTrade",, "T")/100,"") ->  | K25: =IFERROR(I25/RTD("cqg.rtd",,"StudyData",A25, "ATR", "MaType=Sim,Period=10", "ATR","D","-1","ALL",,,"FALSE","T")/100,"") ->  | L25: =IFERROR(RTD("cqg.rtd", ,"ContractData",A25, "OPen",, "T"),"") ->  | M25: =IFERROR(RTD("cqg.rtd", ,"ContractData", A25, "HIgh",, "T"),"") ->  | N25: =IFERROR(RTD("cqg.rtd", ,"ContractData",A25, "LOw",, "T"),"") ->  | O25: =IFERROR(RTD("cqg.rtd", ,"ContractData",A25, "T_CVol",, "T"),"") ->  | Q25: =IFERROR(O25/RTD("cqg.rtd",,"StudyData",A25, "MA", "InputChoice=Vol,MAType=Sim,Period=21", "MA","D","-1","all",,,,"T"),"") ->  | R25: =XLI!R8 -> 
A26: =TRIM(XLI!O9) ->  | B26: News | C26: =IFERROR(RTD("cqg.rtd", ,"ContractData",A26, "LongDescription",, "T")&" ("&RIGHT(A26,LEN(A26)-5)&")","") ->  | H26: =IFERROR(RTD("cqg.rtd", ,"ContractData",A26, "LastTradeToday",, "T"),"") ->  | I26: =IFERROR(RTD("cqg.rtd", ,"ContractData",A26, "NetLastTradeToday",, "T"),"") ->  | J26: =IFERROR(RTD("cqg.rtd", ,"ContractData",A26, "PerCentNetLastTrade",, "T")/100,"") ->  | K26: =IFERROR(I26/RTD("cqg.rtd",,"StudyData",A26, "ATR", "MaType=Sim,Period=10", "ATR","D","-1","ALL",,,"FALSE","T")/100,"") ->  | L26: =IFERROR(RTD("cqg.rtd", ,"ContractData",A26, "OPen",, "T"),"") ->  | M26: =IFERROR(RTD("cqg.rtd", ,"ContractData", A26, "HIgh",, "T"),"") ->  | N26: =IFERROR(RTD("cqg.rtd", ,"ContractData",A26, "LOw",, "T"),"") ->  | O26: =IFERROR(RTD("cqg.rtd", ,"ContractData",A26, "T_CVol",, "T"),"") ->  | Q26: =IFERROR(O26/RTD("cqg.rtd",,"StudyData",A26, "MA", "InputChoice=Vol,MAType=Sim,Period=21", "MA","D","-1","all",,,,"T"),"") ->  | R26: =XLI!R9 -> 
A27: =TRIM(XLI!O10) ->  | B27: News | C27: =IFERROR(RTD("cqg.rtd", ,"ContractData",A27, "LongDescription",, "T")&" ("&RIGHT(A27,LEN(A27)-5)&")","") ->  | H27: =IFERROR(RTD("cqg.rtd", ,"ContractData",A27, "LastTradeToday",, "T"),"") ->  | I27: =IFERROR(RTD("cqg.rtd", ,"ContractData",A27, "NetLastTradeToday",, "T"),"") ->  | J27: =IFERROR(RTD("cqg.rtd", ,"ContractData",A27, "PerCentNetLastTrade",, "T")/100,"") ->  | K27: =IFERROR(I27/RTD("cqg.rtd",,"StudyData",A27, "ATR", "MaType=Sim,Period=10", "ATR","D","-1","ALL",,,"FALSE","T")/100,"") ->  | L27: =IFERROR(RTD("cqg.rtd", ,"ContractData",A27, "OPen",, "T"),"") ->  | M27: =IFERROR(RTD("cqg.rtd", ,"ContractData", A27, "HIgh",, "T"),"") ->  | N27: =IFERROR(RTD("cqg.rtd", ,"ContractData",A27, "LOw",, "T"),"") ->  | O27: =IFERROR(RTD("cqg.rtd", ,"ContractData",A27, "T_CVol",, "T"),"") ->  | Q27: =IFERROR(O27/RTD("cqg.rtd",,"StudyData",A27, "MA", "InputChoice=Vol,MAType=Sim,Period=21", "MA","D","-1","all",,,,"T"),"") ->  | R27: =XLI!R10 ->  | S27: Bottom 15 Performing Companies
A28: =TRIM(XLI!O11) ->  | B28: News | C28: =IFERROR(RTD("cqg.rtd", ,"ContractData",A28, "LongDescription",, "T")&" ("&RIGHT(A28,LEN(A28)-5)&")","") ->  | H28: =IFERROR(RTD("cqg.rtd", ,"ContractData",A28, "LastTradeToday",, "T"),"") ->  | I28: =IFERROR(RTD("cqg.rtd", ,"ContractData",A28, "NetLastTradeToday",, "T"),"") ->  | J28: =IFERROR(RTD("cqg.rtd", ,"ContractData",A28, "PerCentNetLastTrade",, "T")/100,"") ->  | K28: =IFERROR(I28/RTD("cqg.rtd",,"StudyData",A28, "ATR", "MaType=Sim,Period=10", "ATR","D","-1","ALL",,,"FALSE","T")/100,"") ->  | L28: =IFERROR(RTD("cqg.rtd", ,"ContractData",A28, "OPen",, "T"),"") ->  | M28: =IFERROR(RTD("cqg.rtd", ,"ContractData", A28, "HIgh",, "T"),"") ->  | N28: =IFERROR(RTD("cqg.rtd", ,"ContractData",A28, "LOw",, "T"),"") ->  | O28: =IFERROR(RTD("cqg.rtd", ,"ContractData",A28, "T_CVol",, "T"),"") ->  | Q28: =IFERROR(O28/RTD("cqg.rtd",,"StudyData",A28, "MA", "InputChoice=Vol,MAType=Sim,Period=21", "MA","D","-1","all",,,,"T"),"") ->  | R28: =XLI!R11 -> 
A29: =TRIM(XLI!O12) ->  | B29: News | C29: =IFERROR(RTD("cqg.rtd", ,"ContractData",A29, "LongDescription",, "T")&" ("&RIGHT(A29,LEN(A29)-5)&")","") ->  | H29: =IFERROR(RTD("cqg.rtd", ,"ContractData",A29, "LastTradeToday",, "T"),"") ->  | I29: =IFERROR(RTD("cqg.rtd", ,"ContractData",A29, "NetLastTradeToday",, "T"),"") ->  | J29: =IFERROR(RTD("cqg.rtd", ,"ContractData",A29, "PerCentNetLastTrade",, "T")/100,"") ->  | K29: =IFERROR(I29/RTD("cqg.rtd",,"StudyData",A29, "ATR", "MaType=Sim,Period=10", "ATR","D","-1","ALL",,,"FALSE","T")/100,"") ->  | L29: =IFERROR(RTD("cqg.rtd", ,"ContractData",A29, "OPen",, "T"),"") ->  | M29: =IFERROR(RTD("cqg.rtd", ,"ContractData", A29, "HIgh",, "T"),"") ->  | N29: =IFERROR(RTD("cqg.rtd", ,"ContractData",A29, "LOw",, "T"),"") ->  | O29: =IFERROR(RTD("cqg.rtd", ,"ContractData",A29, "T_CVol",, "T"),"") ->  | Q29: =IFERROR(O29/RTD("cqg.rtd",,"StudyData",A29, "MA", "InputChoice=Vol,MAType=Sim,Period=21", "MA","D","-1","all",,,,"T"),"") ->  | R29: =XLI!R12 -> 
A30: =TRIM(XLI!O13) ->  | B30: News | C30: =IFERROR(RTD("cqg.rtd", ,"ContractData",A30, "LongDescription",, "T")&" ("&RIGHT(A30,LEN(A30)-5)&")","") ->  | H30: =IFERROR(RTD("cqg.rtd", ,"ContractData",A30, "LastTradeToday",, "T"),"") ->  | I30: =IFERROR(RTD("cqg.rtd", ,"ContractData",A30, "NetLastTradeToday",, "T"),"") ->  | J30: =IFERROR(RTD("cqg.rtd", ,"ContractData",A30, "PerCentNetLastTrade",, "T")/100,"") ->  | K30: =IFERROR(I30/RTD("cqg.rtd",,"StudyData",A30, "ATR", "MaType=Sim,Period=10", "ATR","D","-1","ALL",,,"FALSE","T")/100,"") ->  | L30: =IFERROR(RTD("cqg.rtd", ,"ContractData",A30, "OPen",, "T"),"") ->  | M30: =IFERROR(RTD("cqg.rtd", ,"ContractData", A30, "HIgh",, "T"),"") ->  | N30: =IFERROR(RTD("cqg.rtd", ,"ContractData",A30, "LOw",, "T"),"") ->  | O30: =IFERROR(RTD("cqg.rtd", ,"ContractData",A30, "T_CVol",, "T"),"") ->  | Q30: =IFERROR(O30/RTD("cqg.rtd",,"StudyData",A30, "MA", "InputChoice=Vol,MAType=Sim,Period=21", "MA","D","-1","all",,,,"T"),"") ->  | R30: =XLI!R13 -> 
A31: =TRIM(XLI!O14) ->  | B31: News | C31: =IFERROR(RTD("cqg.rtd", ,"ContractData",A31, "LongDescription",, "T")&" ("&RIGHT(A31,LEN(A31)-5)&")","") ->  | H31: =IFERROR(RTD("cqg.rtd", ,"ContractData",A31, "LastTradeToday",, "T"),"") ->  | I31: =IFERROR(RTD("cqg.rtd", ,"ContractData",A31, "NetLastTradeToday",, "T"),"") ->  | J31: =IFERROR(RTD("cqg.rtd", ,"ContractData",A31, "PerCentNetLastTrade",, "T")/100,"") ->  | K31: =IFERROR(I31/RTD("cqg.rtd",,"StudyData",A31, "ATR", "MaType=Sim,Period=10", "ATR","D","-1","ALL",,,"FALSE","T")/100,"") ->  | L31: =IFERROR(RTD("cqg.rtd", ,"ContractData",A31, "OPen",, "T"),"") ->  | M31: =IFERROR(RTD("cqg.rtd", ,"ContractData", A31, "HIgh",, "T"),"") ->  | N31: =IFERROR(RTD("cqg.rtd", ,"ContractData",A31, "LOw",, "T"),"") ->  | O31: =IFERROR(RTD("cqg.rtd", ,"ContractData",A31, "T_CVol",, "T"),"") ->  | Q31: =IFERROR(O31/RTD("cqg.rtd",,"StudyData",A31, "MA", "InputChoice=Vol,MAType=Sim,Period=21", "MA","D","-1","all",,,,"T"),"") ->  | R31: =XLI!R14 -> 
A32: =TRIM(XLI!O15) ->  | B32: News | C32: =IFERROR(RTD("cqg.rtd", ,"ContractData",A32, "LongDescription",, "T")&" ("&RIGHT(A32,LEN(A32)-5)&")","") ->  | H32: =IFERROR(RTD("cqg.rtd", ,"ContractData",A32, "LastTradeToday",, "T"),"") ->  | I32: =IFERROR(RTD("cqg.rtd", ,"ContractData",A32, "NetLastTradeToday",, "T"),"") ->  | J32: =IFERROR(RTD("cqg.rtd", ,"ContractData",A32, "PerCentNetLastTrade",, "T")/100,"") ->  | K32: =IFERROR(I32/RTD("cqg.rtd",,"StudyData",A32, "ATR", "MaType=Sim,Period=10", "ATR","D","-1","ALL",,,"FALSE","T")/100,"") ->  | L32: =IFERROR(RTD("cqg.rtd", ,"ContractData",A32, "OPen",, "T"),"") ->  | M32: =IFERROR(RTD("cqg.rtd", ,"ContractData", A32, "HIgh",, "T"),"") ->  | N32: =IFERROR(RTD("cqg.rtd", ,"ContractData",A32, "LOw",, "T"),"") ->  | O32: =IFERROR(RTD("cqg.rtd", ,"ContractData",A32, "T_CVol",, "T"),"") ->  | Q32: =IFERROR(O32/RTD("cqg.rtd",,"StudyData",A32, "MA", "InputChoice=Vol,MAType=Sim,Period=21", "MA","D","-1","all",,,,"T"),"") ->  | R32: =XLI!R15 -> 
C33: Bottom 15 Description | H33: Last | I33: NC | J33: %NC | K33: NC/ATR | L33: Open | M33: High | N33: Low | O33: Volume | Q33: Ratio
A34: =TRIM(XLI!AC1) ->  | B34: News | C34: =IFERROR(RTD("cqg.rtd", ,"ContractData",A34, "LongDescription",, "T")&" ("&RIGHT(A34,LEN(A34)-5)&")","") ->  | H34: =IFERROR(RTD("cqg.rtd", ,"ContractData",A34, "LastTradeToday",, "T"),"") ->  | I34: =IFERROR(RTD("cqg.rtd", ,"ContractData",A34, "NetLastTradeToday",, "T"),"") ->  | J34: =IFERROR(RTD("cqg.rtd", ,"ContractData",A34, "PerCentNetLastTrade",, "T")/100,"") ->  | K34: =IFERROR(I34/RTD("cqg.rtd",,"StudyData",A34, "ATR", "MaType=Sim,Period=10", "ATR","D","-1","ALL",,,"FALSE","T")/100,"") ->  | L34: =IFERROR(RTD("cqg.rtd", ,"ContractData",A34, "OPen",, "T"),"") ->  | M34: =IFERROR(RTD("cqg.rtd", ,"ContractData", A34, "HIgh",, "T"),"") ->  | N34: =IFERROR(RTD("cqg.rtd", ,"ContractData",A34, "LOw",, "T"),"") ->  | O34: =IFERROR(RTD("cqg.rtd", ,"ContractData",A34, "T_CVol",, "T"),"") ->  | Q34: =IFERROR(O34/RTD("cqg.rtd",,"StudyData",A34, "MA", "InputChoice=Vol,MAType=Sim,Period=21", "MA","D","-1","all",,,,"T"),"") ->  | R34: =XLI!AH1 -> 
A35: =TRIM(XLI!AC2) ->  | B35: News | C35: =IFERROR(RTD("cqg.rtd", ,"ContractData",A35, "LongDescription",, "T")&" ("&RIGHT(A35,LEN(A35)-5)&")","") ->  | H35: =IFERROR(RTD("cqg.rtd", ,"ContractData",A35, "LastTradeToday",, "T"),"") ->  | I35: =IFERROR(RTD("cqg.rtd", ,"ContractData",A35, "NetLastTradeToday",, "T"),"") ->  | J35: =IFERROR(RTD("cqg.rtd", ,"ContractData",A35, "PerCentNetLastTrade",, "T")/100,"") ->  | K35: =IFERROR(I35/RTD("cqg.rtd",,"StudyData",A35, "ATR", "MaType=Sim,Period=10", "ATR","D","-1","ALL",,,"FALSE","T")/100,"") ->  | L35: =IFERROR(RTD("cqg.rtd", ,"ContractData",A35, "OPen",, "T"),"") ->  | M35: =IFERROR(RTD("cqg.rtd", ,"ContractData", A35, "HIgh",, "T"),"") ->  | N35: =IFERROR(RTD("cqg.rtd", ,"ContractData",A35, "LOw",, "T"),"") ->  | O35: =IFERROR(RTD("cqg.rtd", ,"ContractData",A35, "T_CVol",, "T"),"") ->  | Q35: =IFERROR(O35/RTD("cqg.rtd",,"StudyData",A35, "MA", "InputChoice=Vol,MAType=Sim,Period=21", "MA","D","-1","all",,,,"T"),"") ->  | R35: =XLI!AH2 -> 
A36: =TRIM(XLI!AC3) ->  | B36: News | C36: =IFERROR(RTD("cqg.rtd", ,"ContractData",A36, "LongDescription",, "T")&" ("&RIGHT(A36,LEN(A36)-5)&")","") ->  | H36: =IFERROR(RTD("cqg.rtd", ,"ContractData",A36, "LastTradeToday",, "T"),"") ->  | I36: =IFERROR(RTD("cqg.rtd", ,"ContractData",A36, "NetLastTradeToday",, "T"),"") ->  | J36: =IFERROR(RTD("cqg.rtd", ,"ContractData",A36, "PerCentNetLastTrade",, "T")/100,"") ->  | K36: =IFERROR(I36/RTD("cqg.rtd",,"StudyData",A36, "ATR", "MaType=Sim,Period=10", "ATR","D","-1","ALL",,,"FALSE","T")/100,"") ->  | L36: =IFERROR(RTD("cqg.rtd", ,"ContractData",A36, "OPen",, "T"),"") ->  | M36: =IFERROR(RTD("cqg.rtd", ,"ContractData", A36, "HIgh",, "T"),"") ->  | N36: =IFERROR(RTD("cqg.rtd", ,"ContractData",A36, "LOw",, "T"),"") ->  | O36: =IFERROR(RTD("cqg.rtd", ,"ContractData",A36, "T_CVol",, "T"),"") ->  | Q36: =IFERROR(O36/RTD("cqg.rtd",,"StudyData",A36, "MA", "InputChoice=Vol,MAType=Sim,Period=21", "MA","D","-1","all",,,,"T"),"") ->  | R36: =XLI!AH3 -> 
A37: =TRIM(XLI!AC4) ->  | B37: News | C37: =IFERROR(RTD("cqg.rtd", ,"ContractData",A37, "LongDescription",, "T")&" ("&RIGHT(A37,LEN(A37)-5)&")","") ->  | H37: =IFERROR(RTD("cqg.rtd", ,"ContractData",A37, "LastTradeToday",, "T"),"") ->  | I37: =IFERROR(RTD("cqg.rtd", ,"ContractData",A37, "NetLastTradeToday",, "T"),"") ->  | J37: =IFERROR(RTD("cqg.rtd", ,"ContractData",A37, "PerCentNetLastTrade",, "T")/100,"") ->  | K37: =IFERROR(I37/RTD("cqg.rtd",,"StudyData",A37, "ATR", "MaType=Sim,Period=10", "ATR","D","-1","ALL",,,"FALSE","T")/100,"") ->  | L37: =IFERROR(RTD("cqg.rtd", ,"ContractData",A37, "OPen",, "T"),"") ->  | M37: =IFERROR(RTD("cqg.rtd", ,"ContractData", A37, "HIgh",, "T"),"") ->  | N37: =IFERROR(RTD("cqg.rtd", ,"ContractData",A37, "LOw",, "T"),"") ->  | O37: =IFERROR(RTD("cqg.rtd", ,"ContractData",A37, "T_CVol",, "T"),"") ->  | Q37: =IFERROR(O37/RTD("cqg.rtd",,"StudyData",A37, "MA", "InputChoice=Vol,MAType=Sim,Period=21", "MA","D","-1","all",,,,"T"),"") ->  | R37: =XLI!AH4 -> 
A38: =TRIM(XLI!AC5) ->  | B38: News | C38: =IFERROR(RTD("cqg.rtd", ,"ContractData",A38, "LongDescription",, "T")&" ("&RIGHT(A38,LEN(A38)-5)&")","") ->  | H38: =IFERROR(RTD("cqg.rtd", ,"ContractData",A38, "LastTradeToday",, "T"),"") ->  | I38: =IFERROR(RTD("cqg.rtd", ,"ContractData",A38, "NetLastTradeToday",, "T"),"") ->  | J38: =IFERROR(RTD("cqg.rtd", ,"ContractData",A38, "PerCentNetLastTrade",, "T")/100,"") ->  | K38: =IFERROR(I38/RTD("cqg.rtd",,"StudyData",A38, "ATR", "MaType=Sim,Period=10", "ATR","D","-1","ALL",,,"FALSE","T")/100,"") ->  | L38: =IFERROR(RTD("cqg.rtd", ,"ContractData",A38, "OPen",, "T"),"") ->  | M38: =IFERROR(RTD("cqg.rtd", ,"ContractData", A38, "HIgh",, "T"),"") ->  | N38: =IFERROR(RTD("cqg.rtd", ,"ContractData",A38, "LOw",, "T"),"") ->  | O38: =IFERROR(RTD("cqg.rtd", ,"ContractData",A38, "T_CVol",, "T"),"") ->  | Q38: =IFERROR(O38/RTD("cqg.rtd",,"StudyData",A38, "MA", "InputChoice=Vol,MAType=Sim,Period=21", "MA","D","-1","all",,,,"T"),"") ->  | R38: =XLI!AH5 -> 
A39: =TRIM(XLI!AC6) ->  | B39: News | C39: =IFERROR(RTD("cqg.rtd", ,"ContractData",A39, "LongDescription",, "T")&" ("&RIGHT(A39,LEN(A39)-5)&")","") ->  | H39: =IFERROR(RTD("cqg.rtd", ,"ContractData",A39, "LastTradeToday",, "T"),"") ->  | I39: =IFERROR(RTD("cqg.rtd", ,"ContractData",A39, "NetLastTradeToday",, "T"),"") ->  | J39: =IFERROR(RTD("cqg.rtd", ,"ContractData",A39, "PerCentNetLastTrade",, "T")/100,"") ->  | K39: =IFERROR(I39/RTD("cqg.rtd",,"StudyData",A39, "ATR", "MaType=Sim,Period=10", "ATR","D","-1","ALL",,,"FALSE","T")/100,"") ->  | L39: =IFERROR(RTD("cqg.rtd", ,"ContractData",A39, "OPen",, "T"),"") ->  | M39: =IFERROR(RTD("cqg.rtd", ,"ContractData", A39, "HIgh",, "T"),"") ->  | N39: =IFERROR(RTD("cqg.rtd", ,"ContractData",A39, "LOw",, "T"),"") ->  | O39: =IFERROR(RTD("cqg.rtd", ,"ContractData",A39, "T_CVol",, "T"),"") ->  | Q39: =IFERROR(O39/RTD("cqg.rtd",,"StudyData",A39, "MA", "InputChoice=Vol,MAType=Sim,Period=21", "MA","D","-1","all",,,,"T"),"") ->  | R39: =XLI!AH6 -> 
A40: =TRIM(XLI!AC7) ->  | B40: News | C40: =IFERROR(RTD("cqg.rtd", ,"ContractData",A40, "LongDescription",, "T")&" ("&RIGHT(A40,LEN(A40)-5)&")","") ->  | H40: =IFERROR(RTD("cqg.rtd", ,"ContractData",A40, "LastTradeToday",, "T"),"") ->  | I40: =IFERROR(RTD("cqg.rtd", ,"ContractData",A40, "NetLastTradeToday",, "T"),"") ->  | J40: =IFERROR(RTD("cqg.rtd", ,"ContractData",A40, "PerCentNetLastTrade",, "T")/100,"") ->  | K40: =IFERROR(I40/RTD("cqg.rtd",,"StudyData",A40, "ATR", "MaType=Sim,Period=10", "ATR","D","-1","ALL",,,"FALSE","T")/100,"") ->  | L40: =IFERROR(RTD("cqg.rtd", ,"ContractData",A40, "OPen",, "T"),"") ->  | M40: =IFERROR(RTD("cqg.rtd", ,"ContractData", A40, "HIgh",, "T"),"") ->  | N40: =IFERROR(RTD("cqg.rtd", ,"ContractData",A40, "LOw",, "T"),"") ->  | O40: =IFERROR(RTD("cqg.rtd", ,"ContractData",A40, "T_CVol",, "T"),"") ->  | Q40: =IFERROR(O40/RTD("cqg.rtd",,"StudyData",A40, "MA", "InputChoice=Vol,MAType=Sim,Period=21", "MA","D","-1","all",,,,"T"),"") ->  | R40: =XLI!AH7 -> 
A41: =TRIM(XLI!AC8) ->  | B41: News | C41: =IFERROR(RTD("cqg.rtd", ,"ContractData",A41, "LongDescription",, "T")&" ("&RIGHT(A41,LEN(A41)-5)&")","") ->  | H41: =IFERROR(RTD("cqg.rtd", ,"ContractData",A41, "LastTradeToday",, "T"),"") ->  | I41: =IFERROR(RTD("cqg.rtd", ,"ContractData",A41, "NetLastTradeToday",, "T"),"") ->  | J41: =IFERROR(RTD("cqg.rtd", ,"ContractData",A41, "PerCentNetLastTrade",, "T")/100,"") ->  | K41: =IFERROR(I41/RTD("cqg.rtd",,"StudyData",A41, "ATR", "MaType=Sim,Period=10", "ATR","D","-1","ALL",,,"FALSE","T")/100,"") ->  | L41: =IFERROR(RTD("cqg.rtd", ,"ContractData",A41, "OPen",, "T"),"") ->  | M41: =IFERROR(RTD("cqg.rtd", ,"ContractData", A41, "HIgh",, "T"),"") ->  | N41: =IFERROR(RTD("cqg.rtd", ,"ContractData",A41, "LOw",, "T"),"") ->  | O41: =IFERROR(RTD("cqg.rtd", ,"ContractData",A41, "T_CVol",, "T"),"") ->  | Q41: =IFERROR(O41/RTD("cqg.rtd",,"StudyData",A41, "MA", "InputChoice=Vol,MAType=Sim,Period=21", "MA","D","-1","all",,,,"T"),"") ->  | R41: =XLI!AH8 -> 
A42: =TRIM(XLI!AC9) ->  | B42: News | C42: =IFERROR(RTD("cqg.rtd", ,"ContractData",A42, "LongDescription",, "T")&" ("&RIGHT(A42,LEN(A42)-5)&")","") ->  | H42: =IFERROR(RTD("cqg.rtd", ,"ContractData",A42, "LastTradeToday",, "T"),"") ->  | I42: =IFERROR(RTD("cqg.rtd", ,"ContractData",A42, "NetLastTradeToday",, "T"),"") ->  | J42: =IFERROR(RTD("cqg.rtd", ,"ContractData",A42, "PerCentNetLastTrade",, "T")/100,"") ->  | K42: =IFERROR(I42/RTD("cqg.rtd",,"StudyData",A42, "ATR", "MaType=Sim,Period=10", "ATR","D","-1","ALL",,,"FALSE","T")/100,"") ->  | L42: =IFERROR(RTD("cqg.rtd", ,"ContractData",A42, "OPen",, "T"),"") ->  | M42: =IFERROR(RTD("cqg.rtd", ,"ContractData", A42, "HIgh",, "T"),"") ->  | N42: =IFERROR(RTD("cqg.rtd", ,"ContractData",A42, "LOw",, "T"),"") ->  | O42: =IFERROR(RTD("cqg.rtd", ,"ContractData",A42, "T_CVol",, "T"),"") ->  | Q42: =IFERROR(O42/RTD("cqg.rtd",,"StudyData",A42, "MA", "InputChoice=Vol,MAType=Sim,Period=21", "MA","D","-1","all",,,,"T"),"") ->  | R42: =XLI!AH9 -> 
A43: =TRIM(XLI!AC10) ->  | B43: News | C43: =IFERROR(RTD("cqg.rtd", ,"ContractData",A43, "LongDescription",, "T")&" ("&RIGHT(A43,LEN(A43)-5)&")","") ->  | H43: =IFERROR(RTD("cqg.rtd", ,"ContractData",A43, "LastTradeToday",, "T"),"") ->  | I43: =IFERROR(RTD("cqg.rtd", ,"ContractData",A43, "NetLastTradeToday",, "T"),"") ->  | J43: =IFERROR(RTD("cqg.rtd", ,"ContractData",A43, "PerCentNetLastTrade",, "T")/100,"") ->  | K43: =IFERROR(I43/RTD("cqg.rtd",,"StudyData",A43, "ATR", "MaType=Sim,Period=10", "ATR","D","-1","ALL",,,"FALSE","T")/100,"") ->  | L43: =IFERROR(RTD("cqg.rtd", ,"ContractData",A43, "OPen",, "T"),"") ->  | M43: =IFERROR(RTD("cqg.rtd", ,"ContractData", A43, "HIgh",, "T"),"") ->  | N43: =IFERROR(RTD("cqg.rtd", ,"ContractData",A43, "LOw",, "T"),"") ->  | O43: =IFERROR(RTD("cqg.rtd", ,"ContractData",A43, "T_CVol",, "T"),"") ->  | Q43: =IFERROR(O43/RTD("cqg.rtd",,"StudyData",A43, "MA", "InputChoice=Vol,MAType=Sim,Period=21", "MA","D","-1","all",,,,"T"),"") ->  | R43: =XLI!AH10 -> 
A44: =TRIM(XLI!AC11) ->  | B44: News | C44: =IFERROR(RTD("cqg.rtd", ,"ContractData",A44, "LongDescription",, "T")&" ("&RIGHT(A44,LEN(A44)-5)&")","") ->  | H44: =IFERROR(RTD("cqg.rtd", ,"ContractData",A44, "LastTradeToday",, "T"),"") ->  | I44: =IFERROR(RTD("cqg.rtd", ,"ContractData",A44, "NetLastTradeToday",, "T"),"") ->  | J44: =IFERROR(RTD("cqg.rtd", ,"ContractData",A44, "PerCentNetLastTrade",, "T")/100,"") ->  | K44: =IFERROR(I44/RTD("cqg.rtd",,"StudyData",A44, "ATR", "MaType=Sim,Period=10", "ATR","D","-1","ALL",,,"FALSE","T")/100,"") ->  | L44: =IFERROR(RTD("cqg.rtd", ,"ContractData",A44, "OPen",, "T"),"") ->  | M44: =IFERROR(RTD("cqg.rtd", ,"ContractData", A44, "HIgh",, "T"),"") ->  | N44: =IFERROR(RTD("cqg.rtd", ,"ContractData",A44, "LOw",, "T"),"") ->  | O44: =IFERROR(RTD("cqg.rtd", ,"ContractData",A44, "T_CVol",, "T"),"") ->  | Q44: =IFERROR(O44/RTD("cqg.rtd",,"StudyData",A44, "MA", "InputChoice=Vol,MAType=Sim,Period=21", "MA","D","-1","all",,,,"T"),"") ->  | R44: =XLI!AH11 -> 
A45: =TRIM(XLI!AC12) ->  | B45: News | C45: =IFERROR(RTD("cqg.rtd", ,"ContractData",A45, "LongDescription",, "T")&" ("&RIGHT(A45,LEN(A45)-5)&")","") ->  | H45: =IFERROR(RTD("cqg.rtd", ,"ContractData",A45, "LastTradeToday",, "T"),"") ->  | I45: =IFERROR(RTD("cqg.rtd", ,"ContractData",A45, "NetLastTradeToday",, "T"),"") ->  | J45: =IFERROR(RTD("cqg.rtd", ,"ContractData",A45, "PerCentNetLastTrade",, "T")/100,"") ->  | K45: =IFERROR(I45/RTD("cqg.rtd",,"StudyData",A45, "ATR", "MaType=Sim,Period=10", "ATR","D","-1","ALL",,,"FALSE","T")/100,"") ->  | L45: =IFERROR(RTD("cqg.rtd", ,"ContractData",A45, "OPen",, "T"),"") ->  | M45: =IFERROR(RTD("cqg.rtd", ,"ContractData", A45, "HIgh",, "T"),"") ->  | N45: =IFERROR(RTD("cqg.rtd", ,"ContractData",A45, "LOw",, "T"),"") ->  | O45: =IFERROR(RTD("cqg.rtd", ,"ContractData",A45, "T_CVol",, "T"),"") ->  | Q45: =IFERROR(O45/RTD("cqg.rtd",,"StudyData",A45, "MA", "InputChoice=Vol,MAType=Sim,Period=21", "MA","D","-1","all",,,,"T"),"") ->  | R45: =XLI!AH12 -> 
A46: =TRIM(XLI!AC13) ->  | B46: News | C46: =IFERROR(RTD("cqg.rtd", ,"ContractData",A46, "LongDescription",, "T")&" ("&RIGHT(A46,LEN(A46)-5)&")","") ->  | H46: =IFERROR(RTD("cqg.rtd", ,"ContractData",A46, "LastTradeToday",, "T"),"") ->  | I46: =IFERROR(RTD("cqg.rtd", ,"ContractData",A46, "NetLastTradeToday",, "T"),"") ->  | J46: =IFERROR(RTD("cqg.rtd", ,"ContractData",A46, "PerCentNetLastTrade",, "T")/100,"") ->  | K46: =IFERROR(I46/RTD("cqg.rtd",,"StudyData",A46, "ATR", "MaType=Sim,Period=10", "ATR","D","-1","ALL",,,"FALSE","T")/100,"") ->  | L46: =IFERROR(RTD("cqg.rtd", ,"ContractData",A46, "OPen",, "T"),"") ->  | M46: =IFERROR(RTD("cqg.rtd", ,"ContractData", A46, "HIgh",, "T"),"") ->  | N46: =IFERROR(RTD("cqg.rtd", ,"ContractData",A46, "LOw",, "T"),"") ->  | O46: =IFERROR(RTD("cqg.rtd", ,"ContractData",A46, "T_CVol",, "T"),"") ->  | Q46: =IFERROR(O46/RTD("cqg.rtd",,"StudyData",A46, "MA", "InputChoice=Vol,MAType=Sim,Period=21", "MA","D","-1","all",,,,"T"),"") ->  | R46: =XLI!AH13 -> 
A47: =TRIM(XLI!AC14) ->  | B47: News | C47: =IFERROR(RTD("cqg.rtd", ,"ContractData",A47, "LongDescription",, "T")&" ("&RIGHT(A47,LEN(A47)-5)&")","") ->  | H47: =IFERROR(RTD("cqg.rtd", ,"ContractData",A47, "LastTradeToday",, "T"),"") ->  | I47: =IFERROR(RTD("cqg.rtd", ,"ContractData",A47, "NetLastTradeToday",, "T"),"") ->  | J47: =IFERROR(RTD("cqg.rtd", ,"ContractData",A47, "PerCentNetLastTrade",, "T")/100,"") ->  | K47: =IFERROR(I47/RTD("cqg.rtd",,"StudyData",A47, "ATR", "MaType=Sim,Period=10", "ATR","D","-1","ALL",,,"FALSE","T")/100,"") ->  | L47: =IFERROR(RTD("cqg.rtd", ,"ContractData",A47, "OPen",, "T"),"") ->  | M47: =IFERROR(RTD("cqg.rtd", ,"ContractData", A47, "HIgh",, "T"),"") ->  | N47: =IFERROR(RTD("cqg.rtd", ,"ContractData",A47, "LOw",, "T"),"") ->  | O47: =IFERROR(RTD("cqg.rtd", ,"ContractData",A47, "T_CVol",, "T"),"") ->  | Q47: =IFERROR(O47/RTD("cqg.rtd",,"StudyData",A47, "MA", "InputChoice=Vol,MAType=Sim,Period=21", "MA","D","-1","all",,,,"T"),"") ->  | R47: =XLI!AH14 -> 
A48: =TRIM(XLI!AC15) ->  | B48: News | C48: =IFERROR(RTD("cqg.rtd", ,"ContractData",A48, "LongDescription",, "T")&" ("&RIGHT(A48,LEN(A48)-5)&")","") ->  | H48: =IFERROR(RTD("cqg.rtd", ,"ContractData",A48, "LastTradeToday",, "T"),"") ->  | I48: =IFERROR(RTD("cqg.rtd", ,"ContractData",A48, "NetLastTradeToday",, "T"),"") ->  | J48: =IFERROR(RTD("cqg.rtd", ,"ContractData",A48, "PerCentNetLastTrade",, "T")/100,"") ->  | K48: =IFERROR(I48/RTD("cqg.rtd",,"StudyData",A48, "ATR", "MaType=Sim,Period=10", "ATR","D","-1","ALL",,,"FALSE","T")/100,"") ->  | L48: =IFERROR(RTD("cqg.rtd", ,"ContractData",A48, "OPen",, "T"),"") ->  | M48: =IFERROR(RTD("cqg.rtd", ,"ContractData", A48, "HIgh",, "T"),"") ->  | N48: =IFERROR(RTD("cqg.rtd", ,"ContractData",A48, "LOw",, "T"),"") ->  | O48: =IFERROR(RTD("cqg.rtd", ,"ContractData",A48, "T_CVol",, "T"),"") ->  | Q48: =IFERROR(O48/RTD("cqg.rtd",,"StudyData",A48, "MA", "InputChoice=Vol,MAType=Sim,Period=21", "MA","D","-1","all",,,,"T"),"") ->  | R48: =XLI!AH15 -> 
C49: CQG Inc., Copyright © 2025 | G49: Designed by Thom Hartle | J49: The Industrial Select Sector SPDR® Fund seeks to provide investment results that correspond to the price and yield performance of the Industrial Select Sector Index | Z49: =Z52 -> 100% of the stocks in the ETF are higher today
Z51: =XLI!B99 -> 1 | AA51: of the stocks in the ETF are higher today
Z52: =TEXT(Display!Z51,"0%")&" "&Display!AA51 -> 100% of the stocks in the ETF are higher today

Sheet XLI (hidden)
A1: S.US.ADP | B1: =IF(J1>0,1,0) -> 1 | C1: S.US.ADP | D1: =RTD("cqg.rtd", ,"ContractData",C1, "LongDescription",, "T") -> Auto Data Processing Inc | H1: =RTD("cqg.rtd", ,"ContractData",C1, "LastTradeToday",, "T") ->  | I1: =RTD("cqg.rtd", ,"ContractData",C1, "NetLastTradeToday",, "T") ->  | J1: =IFERROR(RTD("cqg.rtd", ,"ContractData",C1, "PerCentNetLastTrade",, "T")/100,"") ->  | K1: =RTD("cqg.rtd", ,"ContractData", C1, "T_CVol",, "T") -> 482 | L1: 1 | M1: =IFERROR(RANK($J1,$J$1:J$78)+COUNTIF($J$1:J1,J1)-1,"") ->  | N1: =C1 -> S.US.ADP | O1: =TRIM(VLOOKUP($L1,$M$1:$N$78,2,FALSE)) ->  | P1: =RTD("cqg.rtd", ,"ContractData",O1, "LongDescription",, "T") ->  | Q1: =IFERROR(RTD("cqg.rtd", ,"ContractData",O1, "PerCentNetLastTrade",, "T")/100,"") ->  | R1: ="https://finance.yahoo.com/quote/"&RIGHT(O1,(LEN(O1)-5)) ->  | T1: =IF(Q1>=0,Q1,NA()) ->  | U1: =IF(Q1>=0,NA(),-1*Q1) ->  | W1: =IFERROR(RTD("cqg.rtd", ,"ContractData",O1, "LongDescription",, "T"),"") ->  | Z1: =IFERROR(T1,Q1) ->  | AA1: =MIN(J1:J98) -> 0 | AB1: =VLOOKUP(AA1,J1:O98,4,FALSE) ->  | AC1: =VLOOKUP($AB1,$M$1:$N$98,2,FALSE) ->  | AD1: =IFERROR(RTD("cqg.rtd", ,"ContractData",AC1, "PerCentNetLastTrade",, "T")/100,"") ->  | AE1: =IFERROR(RTD("cqg.rtd", ,"ContractData",AC1, "LongDescription",, "T"),"") ->  | AF1: =IFERROR(U1,"") ->  | AG1: =IFERROR(AD1*-1,"") ->  | AH1: ="https://finance.yahoo.com/quote/"&RIGHT(AC1,(LEN(AC1)-5)) -> 
A2: S.US.ALLE | B2: =IF(J2>0,1,0) -> 1 | C2: S.US.ALLE | D2: =RTD("cqg.rtd", ,"ContractData",C2, "LongDescription",, "T") -> Allegion plc | H2: =RTD("cqg.rtd", ,"ContractData",C2, "LastTradeToday",, "T") ->  | I2: =RTD("cqg.rtd", ,"ContractData",C2, "NetLastTradeToday",, "T") ->  | J2: =IFERROR(RTD("cqg.rtd", ,"ContractData",C2, "PerCentNetLastTrade",, "T")/100,"") ->  | K2: =RTD("cqg.rtd", ,"ContractData", C2, "T_CVol",, "T") -> 3 | L2: =L1+1 -> 2 | M2: =IFERROR(RANK($J2,$J$1:J$78)+COUNTIF($J$1:J2,J2)-1,"") ->  | N2: =C2 -> S.US.ALLE | P2: =RTD("cqg.rtd", ,"ContractData",O2, "LongDescription",, "T") ->  | Q2: =IFERROR(RTD("cqg.rtd", ,"ContractData",O2, "PerCentNetLastTrade",, "T")/100,"") ->  | R2: ="https://finance.yahoo.com/quote/"&RIGHT(O2,(LEN(O2)-5)) ->  | T2: =IF(Q2>=0,Q2,NA()) ->  | U2: =IF(Q2>=0,NA(),-1*Q2) ->  | W2: =IFERROR(RTD("cqg.rtd", ,"ContractData",O2, "LongDescription",, "T"),"") ->  | Z2: =IFERROR(T2,Q2) ->  | AB2: =AB1-1 ->  | AD2: =IFERROR(RTD("cqg.rtd", ,"ContractData",AC2, "PerCentNetLastTrade",, "T")/100,"") ->  | AE2: =IFERROR(RTD("cqg.rtd", ,"ContractData",AC2, "LongDescription",, "T"),"") ->  | AF2: =IFERROR(U2,"") ->  | AG2: =IFERROR(AD2*-1,"") ->  | AH2: ="https://finance.yahoo.com/quote/"&RIGHT(AC2,(LEN(AC2)-5)) -> 
A3: S.US.AME | B3: 1 | C3: S.US.AME | D3: =RTD("cqg.rtd", ,"ContractData",C3, "LongDescription",, "T") -> Ametek Inc New | H3: =RTD("cqg.rtd", ,"ContractData",C3, "LastTradeToday",, "T") ->  | I3: =RTD("cqg.rtd", ,"ContractData",C3, "NetLastTradeToday",, "T") ->  | J3: =IFERROR(RTD("cqg.rtd", ,"ContractData",C3, "PerCentNetLastTrade",, "T")/100,"") ->  | K3: =RTD("cqg.rtd", ,"ContractData", C3, "T_CVol",, "T") -> 179 | L3: =L2+1 -> 3 | M3: =IFERROR(RANK($J3,$J$1:J$78)+COUNTIF($J$1:J3,J3)-1,"") ->  | N3: S.US.AME | P3: =RTD("cqg.rtd", ,"ContractData",O3, "LongDescription",, "T") ->  | Q3: =IFERROR(RTD("cqg.rtd", ,"ContractData",O3, "PerCentNetLastTrade",, "T")/100,"") ->  | W3: =IFERROR(RTD("cqg.rtd", ,"ContractData",O3, "LongDescription",, "T"),"") ->  | AB3: =AB2-1 ->  | AD3: =IFERROR(RTD("cqg.rtd", ,"ContractData",AC3, "PerCentNetLastTrade",, "T")/100,"") ->  | AE3: =IFERROR(RTD("cqg.rtd", ,"ContractData",AC3, "LongDescription",, "T"),"") -> 
A4: S.US.AOS | B4: 1 | C4: S.US.AOS | D4: =RTD("cqg.rtd", ,"ContractData",C4, "LongDescription",, "T") -> AO Smith Corp | H4: =RTD("cqg.rtd", ,"ContractData",C4, "LastTradeToday",, "T") ->  | I4: =RTD("cqg.rtd", ,"ContractData",C4, "NetLastTradeToday",, "T") ->  | J4: =IFERROR(RTD("cqg.rtd", ,"ContractData",C4, "PerCentNetLastTrade",, "T")/100,"") ->  | K4: =RTD("cqg.rtd", ,"ContractData", C4, "T_CVol",, "T") -> 33 | L4: 4 | M4: =IFERROR(RANK($J4,$J$1:J$78)+COUNTIF($J$1:J4,J4)-1,"") ->  | N4: S.US.AOS | P4: =RTD("cqg.rtd", ,"ContractData",O4, "LongDescription",, "T") ->  | Q4: =IFERROR(RTD("cqg.rtd", ,"ContractData",O4, "PerCentNetLastTrade",, "T")/100,"") ->  | W4: =IFERROR(RTD("cqg.rtd", ,"ContractData",O4, "LongDescription",, "T"),"") ->  | AD4: =IFERROR(RTD("cqg.rtd", ,"ContractData",AC4, "PerCentNetLastTrade",, "T")/100,"") ->  | AE4: =IFERROR(RTD("cqg.rtd", ,"ContractData",AC4, "LongDescription",, "T"),"") -> 
A5: S.US.AXON | B5: 1 | C5: S.US.AXON | D5: =RTD("cqg.rtd", ,"ContractData",C5, "LongDescription",, "T") -> Axon Enterprise, Inc. | H5: =RTD("cqg.rtd", ,"ContractData",C5, "LastTradeToday",, "T") ->  | I5: =RTD("cqg.rtd", ,"ContractData",C5, "NetLastTradeToday",, "T") ->  | J5: =IFERROR(RTD("cqg.rtd", ,"ContractData",C5, "PerCentNetLastTrade",, "T")/100,"") ->  | K5: =RTD("cqg.rtd", ,"ContractData", C5, "T_CVol",, "T") -> 246 | L5: 5 | M5: =IFERROR(RANK($J5,$J$1:J$78)+COUNTIF($J$1:J5,J5)-1,"") ->  | N5: S.US.AXON | P5: =RTD("cqg.rtd", ,"ContractData",O5, "LongDescription",, "T") ->  | Q5: =IFERROR(RTD("cqg.rtd", ,"ContractData",O5, "PerCentNetLastTrade",, "T")/100,"") ->  | W5: =IFERROR(RTD("cqg.rtd", ,"ContractData",O5, "LongDescription",, "T"),"") ->  | AD5: =IFERROR(RTD("cqg.rtd", ,"ContractData",AC5, "PerCentNetLastTrade",, "T")/100,"") ->  | AE5: =IFERROR(RTD("cqg.rtd", ,"ContractData",AC5, "LongDescription",, "T"),"") -> 
A6: S.US.BA | B6: 1 | C6: S.US.BA | D6: =RTD("cqg.rtd", ,"ContractData",C6, "LongDescription",, "T") -> Boeing Company | H6: =RTD("cqg.rtd", ,"ContractData",C6, "LastTradeToday",, "T") ->  | I6: =RTD("cqg.rtd", ,"ContractData",C6, "NetLastTradeToday",, "T") ->  | J6: =IFERROR(RTD("cqg.rtd", ,"ContractData",C6, "PerCentNetLastTrade",, "T")/100,"") ->  | K6: =RTD("cqg.rtd", ,"ContractData", C6, "T_CVol",, "T") -> 14936 | L6: 6 | M6: =IFERROR(RANK($J6,$J$1:J$78)+COUNTIF($J$1:J6,J6)-1,"") ->  | N6: S.US.BA | P6: =RTD("cqg.rtd", ,"ContractData",O6, "LongDescription",, "T") ->  | Q6: =IFERROR(RTD("cqg.rtd", ,"ContractData",O6, "PerCentNetLastTrade",, "T")/100,"") ->  | W6: =IFERROR(RTD("cqg.rtd", ,"ContractData",O6, "LongDescription",, "T"),"") ->  | AD6: =IFERROR(RTD("cqg.rtd", ,"ContractData",AC6, "PerCentNetLastTrade",, "T")/100,"") ->  | AE6: =IFERROR(RTD("cqg.rtd", ,"ContractData",AC6, "LongDescription",, "T"),"") -> 
A7: S.US.BLDR | B7: 1 | C7: S.US.BLDR | D7: =RTD("cqg.rtd", ,"ContractData",C7, "LongDescription",, "T") -> Builders FirstSource Inc | H7: =RTD("cqg.rtd", ,"ContractData",C7, "LastTradeToday",, "T") ->  | I7: =RTD("cqg.rtd", ,"ContractData",C7, "NetLastTradeToday",, "T") ->  | J7: =IFERROR(RTD("cqg.rtd", ,"ContractData",C7, "PerCentNetLastTrade",, "T")/100,"") ->  | K7: =RTD("cqg.rtd", ,"ContractData", C7, "T_CVol",, "T") -> 433 | L7: 7 | M7: =IFERROR(RANK($J7,$J$1:J$78)+COUNTIF($J$1:J7,J7)-1,"") ->  | N7: S.US.BLDR | P7: =RTD("cqg.rtd", ,"ContractData",O7, "LongDescription",, "T") ->  | Q7: =IFERROR(RTD("cqg.rtd", ,"ContractData",O7, "PerCentNetLastTrade",, "T")/100,"") ->  | W7: =IFERROR(RTD("cqg.rtd", ,"ContractData",O7, "LongDescription",, "T"),"") ->  | AD7: =IFERROR(RTD("cqg.rtd", ,"ContractData",AC7, "PerCentNetLastTrade",, "T")/100,"") ->  | AE7: =IFERROR(RTD("cqg.rtd", ,"ContractData",AC7, "LongDescription",, "T"),"") -> 
A8: S.US.BR | B8: 1 | C8: S.US.BR | D8: =RTD("cqg.rtd", ,"ContractData",C8, "LongDescription",, "T") -> Broadridge Financial Solutions | H8: =RTD("cqg.rtd", ,"ContractData",C8, "LastTradeToday",, "T") ->  | I8: =RTD("cqg.rtd", ,"ContractData",C8, "NetLastTradeToday",, "T") ->  | J8: =IFERROR(RTD("cqg.rtd", ,"ContractData",C8, "PerCentNetLastTrade",, "T")/100,"") ->  | K8: =RTD("cqg.rtd", ,"ContractData", C8, "T_CVol",, "T") -> 112 | L8: 8 | M8: =IFERROR(RANK($J8,$J$1:J$78)+COUNTIF($J$1:J8,J8)-1,"") ->  | N8: S.US.BR | P8: =RTD("cqg.rtd", ,"ContractData",O8, "LongDescription",, "T") ->  | Q8: =IFERROR(RTD("cqg.rtd", ,"ContractData",O8, "PerCentNetLastTrade",, "T")/100,"") ->  | W8: =IFERROR(RTD("cqg.rtd", ,"ContractData",O8, "LongDescription",, "T"),"") ->  | AD8: =IFERROR(RTD("cqg.rtd", ,"ContractData",AC8, "PerCentNetLastTrade",, "T")/100,"") ->  | AE8: =IFERROR(RTD("cqg.rtd", ,"ContractData",AC8, "LongDescription",, "T"),"") -> 
A9: S.US.CARR | B9: 1 | C9: S.US.CARR | D9: =RTD("cqg.rtd", ,"ContractData",C9, "LongDescription",, "T") -> Carrier Global Corporation | H9: =RTD("cqg.rtd", ,"ContractData",C9, "LastTradeToday",, "T") ->  | I9: =RTD("cqg.rtd", ,"ContractData",C9, "NetLastTradeToday",, "T") ->  | J9: =IFERROR(RTD("cqg.rtd", ,"ContractData",C9, "PerCentNetLastTrade",, "T")/100,"") ->  | K9: =RTD("cqg.rtd", ,"ContractData", C9, "T_CVol",, "T") -> 577 | L9: 9 | M9: =IFERROR(RANK($J9,$J$1:J$78)+COUNTIF($J$1:J9,J9)-1,"") ->  | N9: S.US.CARR | P9: =RTD("cqg.rtd", ,"ContractData",O9, "LongDescription",, "T") ->  | Q9: =IFERROR(RTD("cqg.rtd", ,"ContractData",O9, "PerCentNetLastTrade",, "T")/100,"") ->  | W9: =IFERROR(RTD("cqg.rtd", ,"ContractData",O9, "LongDescription",, "T"),"") ->  | AD9: =IFERROR(RTD("cqg.rtd", ,"ContractData",AC9, "PerCentNetLastTrade",, "T")/100,"") ->  | AE9: =IFERROR(RTD("cqg.rtd", ,"ContractData",AC9, "LongDescription",, "T"),"") -> 
A10: S.US.CAT | B10: 1 | C10: S.US.CAT | D10: =RTD("cqg.rtd", ,"ContractData",C10, "LongDescription",, "T") -> Caterpillar Inc | H10: =RTD("cqg.rtd", ,"ContractData",C10, "LastTradeToday",, "T") ->  | I10: =RTD("cqg.rtd", ,"ContractData",C10, "NetLastTradeToday",, "T") ->  | J10: =IFERROR(RTD("cqg.rtd", ,"ContractData",C10, "PerCentNetLastTrade",, "T")/100,"") ->  | K10: =RTD("cqg.rtd", ,"ContractData", C10, "T_CVol",, "T") -> 1198 | L10: 10 | M10: =IFERROR(RANK($J10,$J$1:J$78)+COUNTIF($J$1:J10,J10)-1,"") ->  | N10: S.US.CAT | P10: =RTD("cqg.rtd", ,"ContractData",O10, "LongDescription",, "T") ->  | Q10: =IFERROR(RTD("cqg.rtd", ,"ContractData",O10, "PerCentNetLastTrade",, "T")/100,"") ->  | W10: =IFERROR(RTD("cqg.rtd", ,"ContractData",O10, "LongDescription",, "T"),"") ->  | AD10: =IFERROR(RTD("cqg.rtd", ,"ContractData",AC10, "PerCentNetLastTrade",, "T")/100,"") ->  | AE10: =IFERROR(RTD("cqg.rtd", ,"ContractData",AC10, "LongDescription",, "T"),"") -> 
A11: S.US.CHRW | B11: 1 | C11: S.US.CHRW | D11: =RTD("cqg.rtd", ,"ContractData",C11, "LongDescription",, "T") -> CH Robinson Worldwide Inc | H11: =RTD("cqg.rtd", ,"ContractData",C11, "LastTradeToday",, "T") ->  | I11: =RTD("cqg.rtd", ,"ContractData",C11, "NetLastTradeToday",, "T") ->  | J11: =IFERROR(RTD("cqg.rtd", ,"ContractData",C11, "PerCentNetLastTrade",, "T")/100,"") ->  | K11: =RTD("cqg.rtd", ,"ContractData", C11, "T_CVol",, "T") -> 9 | L11: 11 | M11: =IFERROR(RANK($J11,$J$1:J$78)+COUNTIF($J$1:J11,J11)-1,"") ->  | N11: S.US.CHRW | P11: =RTD("cqg.rtd", ,"ContractData",O11, "LongDescription",, "T") ->  | Q11: =IFERROR(RTD("cqg.rtd", ,"ContractData",O11, "PerCentNetLastTrade",, "T")/100,"") ->  | W11: =IFERROR(RTD("cqg.rtd", ,"ContractData",O11, "LongDescription",, "T"),"") ->  | AD11: =IFERROR(RTD("cqg.rtd", ,"ContractData",AC11, "PerCentNetLastTrade",, "T")/100,"") ->  | AE11: =IFERROR(RTD("cqg.rtd", ,"ContractData",AC11, "LongDescription",, "T"),"") -> 
A12: S.US.CMI | B12: 1 | C12: S.US.CMI | D12: =RTD("cqg.rtd", ,"ContractData",C12, "LongDescription",, "T") -> Cummins Inc | H12: =RTD("cqg.rtd", ,"ContractData",C12, "LastTradeToday",, "T") ->  | I12: =RTD("cqg.rtd", ,"ContractData",C12, "NetLastTradeToday",, "T") ->  | J12: =IFERROR(RTD("cqg.rtd", ,"ContractData",C12, "PerCentNetLastTrade",, "T")/100,"") ->  | K12: =RTD("cqg.rtd", ,"ContractData", C12, "T_CVol",, "T") -> 50 | L12: 12 | M12: =IFERROR(RANK($J12,$J$1:J$78)+COUNTIF($J$1:J12,J12)-1,"") ->  | N12: S.US.CMI | P12: =RTD("cqg.rtd", ,"ContractData",O12, "LongDescription",, "T") ->  | Q12: =IFERROR(RTD("cqg.rtd", ,"ContractData",O12, "PerCentNetLastTrade",, "T")/100,"") ->  | W12: =IFERROR(RTD("cqg.rtd", ,"ContractData",O12, "LongDescription",, "T"),"") ->  | AD12: =IFERROR(RTD("cqg.rtd", ,"ContractData",AC12, "PerCentNetLastTrade",, "T")/100,"") ->  | AE12: =IFERROR(RTD("cqg.rtd", ,"ContractData",AC12, "LongDescription",, "T"),"") -> 
A13: S.US.CPRT | B13: 1 | C13: S.US.CPRT | D13: =RTD("cqg.rtd", ,"ContractData",C13, "LongDescription",, "T") -> Copart Inc | H13: =RTD("cqg.rtd", ,"ContractData",C13, "LastTradeToday",, "T") ->  | I13: =RTD("cqg.rtd", ,"ContractData",C13, "NetLastTradeToday",, "T") ->  | J13: =IFERROR(RTD("cqg.rtd", ,"ContractData",C13, "PerCentNetLastTrade",, "T")/100,"") ->  | K13: =RTD("cqg.rtd", ,"ContractData", C13, "T_CVol",, "T") -> 1629 | L13: 13 | M13: =IFERROR(RANK($J13,$J$1:J$78)+COUNTIF($J$1:J13,J13)-1,"") ->  | N13: S.US.CPRT | P13: =RTD("cqg.rtd", ,"ContractData",O13, "LongDescription",, "T") ->  | Q13: =IFERROR(RTD("cqg.rtd", ,"ContractData",O13, "PerCentNetLastTrade",, "T")/100,"") ->  | W13: =IFERROR(RTD("cqg.rtd", ,"ContractData",O13, "LongDescription",, "T"),"") ->  | AD13: =IFERROR(RTD("cqg.rtd", ,"ContractData",AC13, "PerCentNetLastTrade",, "T")/100,"") ->  | AE13: =IFERROR(RTD("cqg.rtd", ,"ContractData",AC13, "LongDescription",, "T"),"") -> 
A14: S.US.CSX | B14: 1 | C14: S.US.CSX | D14: =RTD("cqg.rtd", ,"ContractData",C14, "LongDescription",, "T") -> CSX Corporation | H14: =RTD("cqg.rtd", ,"ContractData",C14, "LastTradeToday",, "T") ->  | I14: =RTD("cqg.rtd", ,"ContractData",C14, "NetLastTradeToday",, "T") ->  | J14: =IFERROR(RTD("cqg.rtd", ,"ContractData",C14, "PerCentNetLastTrade",, "T")/100,"") ->  | K14: =RTD("cqg.rtd", ,"ContractData", C14, "T_CVol",, "T") -> 13800 | L14: 14 | M14: =IFERROR(RANK($J14,$J$1:J$78)+COUNTIF($J$1:J14,J14)-1,"") ->  | N14: S.US.CSX | P14: =RTD("cqg.rtd", ,"ContractData",O14, "LongDescription",, "T") ->  | Q14: =IFERROR(RTD("cqg.rtd", ,"ContractData",O14, "PerCentNetLastTrade",, "T")/100,"") ->  | W14: =IFERROR(RTD("cqg.rtd", ,"ContractData",O14, "LongDescription",, "T"),"") ->  | AD14: =IFERROR(RTD("cqg.rtd", ,"ContractData",AC14, "PerCentNetLastTrade",, "T")/100,"") ->  | AE14: =IFERROR(RTD("cqg.rtd", ,"ContractData",AC14, "LongDescription",, "T"),"") -> 
A15: S.US.CTAS | B15: 1 | C15: S.US.CTAS | D15: =RTD("cqg.rtd", ,"ContractData",C15, "LongDescription",, "T") -> Cintas Corp | H15: =RTD("cqg.rtd", ,"ContractData",C15, "LastTradeToday",, "T") ->  | I15: =RTD("cqg.rtd", ,"ContractData",C15, "NetLastTradeToday",, "T") ->  | J15: =IFERROR(RTD("cqg.rtd", ,"ContractData",C15, "PerCentNetLastTrade",, "T")/100,"") ->  | K15: =RTD("cqg.rtd", ,"ContractData", C15, "T_CVol",, "T") -> 479 | L15: 15 | M15: =IFERROR(RANK($J15,$J$1:J$78)+COUNTIF($J$1:J15,J15)-1,"") ->  | N15: S.US.CTAS | P15: =RTD("cqg.rtd", ,"ContractData",O15, "LongDescription",, "T") ->  | Q15: =IFERROR(RTD("cqg.rtd", ,"ContractData",O15, "PerCentNetLastTrade",, "T")/100,"") ->  | W15: =IFERROR(RTD("cqg.rtd", ,"ContractData",O15, "LongDescription",, "T"),"") ->  | AD15: =IFERROR(RTD("cqg.rtd", ,"ContractData",AC15, "PerCentNetLastTrade",, "T")/100,"") ->  | AE15: =IFERROR(RTD("cqg.rtd", ,"ContractData",AC15, "LongDescription",, "T"),"") -> 
A16: S.US.DAL | B16: 1 | C16: S.US.DAL | D16: =RTD("cqg.rtd", ,"ContractData",C16, "LongDescription",, "T") -> Delta Airlines, Inc. | H16: =RTD("cqg.rtd", ,"ContractData",C16, "LastTradeToday",, "T") ->  | I16: =RTD("cqg.rtd", ,"ContractData",C16, "NetLastTradeToday",, "T") ->  | J16: =IFERROR(RTD("cqg.rtd", ,"ContractData",C16, "PerCentNetLastTrade",, "T")/100,"") ->  | K16: =RTD("cqg.rtd", ,"ContractData", C16, "T_CVol",, "T") -> 7747 | L16: 16 | M16: =IFERROR(RANK($J16,$J$1:J$78)+COUNTIF($J$1:J16,J16)-1,"") ->  | N16: S.US.DAL
A17: S.US.DAY | B17: 1 | C17: S.US.DAY | D17: =RTD("cqg.rtd", ,"ContractData",C17, "LongDescription",, "T") -> Dayforce Inc. | H17: =RTD("cqg.rtd", ,"ContractData",C17, "LastTradeToday",, "T") ->  | I17: =RTD("cqg.rtd", ,"ContractData",C17, "NetLastTradeToday",, "T") ->  | J17: =IFERROR(RTD("cqg.rtd", ,"ContractData",C17, "PerCentNetLastTrade",, "T")/100,"") ->  | K17: =RTD("cqg.rtd", ,"ContractData", C17, "T_CVol",, "T") -> 60 | L17: 17 | M17: =IFERROR(RANK($J17,$J$1:J$78)+COUNTIF($J$1:J17,J17)-1,"") ->  | N17: S.US.DAY | O17: =VLOOKUP($L17,$M$1:$N$78,2,FALSE) -> 
A18: S.US.DE | B18: 1 | C18: S.US.DE | D18: =RTD("cqg.rtd", ,"ContractData",C18, "LongDescription",, "T") -> Deere & Company | H18: =RTD("cqg.rtd", ,"ContractData",C18, "LastTradeToday",, "T") ->  | I18: =RTD("cqg.rtd", ,"ContractData",C18, "NetLastTradeToday",, "T") ->  | J18: =IFERROR(RTD("cqg.rtd", ,"ContractData",C18, "PerCentNetLastTrade",, "T")/100,"") ->  | K18: =RTD("cqg.rtd", ,"ContractData", C18, "T_CVol",, "T") -> 201 | L18: 18 | M18: =IFERROR(RANK($J18,$J$1:J$78)+COUNTIF($J$1:J18,J18)-1,"") ->  | N18: S.US.DE
A19: S.US.DOV | B19: 1 | C19: S.US.DOV | D19: =RTD("cqg.rtd", ,"ContractData",C19, "LongDescription",, "T") -> Dover Corporation | H19: =RTD("cqg.rtd", ,"ContractData",C19, "LastTradeToday",, "T") ->  | I19: =RTD("cqg.rtd", ,"ContractData",C19, "NetLastTradeToday",, "T") ->  | J19: =IFERROR(RTD("cqg.rtd", ,"ContractData",C19, "PerCentNetLastTrade",, "T")/100,"") ->  | K19: =RTD("cqg.rtd", ,"ContractData", C19, "T_CVol",, "T") -> 127 | L19: 19 | M19: =IFERROR(RANK($J19,$J$1:J$78)+COUNTIF($J$1:J19,J19)-1,"") ->  | N19: S.US.DOV
A20: S.US.EFX | B20: 1 | C20: S.US.EFX | D20: =RTD("cqg.rtd", ,"ContractData",C20, "LongDescription",, "T") -> Equifax Inc | H20: =RTD("cqg.rtd", ,"ContractData",C20, "LastTradeToday",, "T") ->  | I20: =RTD("cqg.rtd", ,"ContractData",C20, "NetLastTradeToday",, "T") ->  | J20: =IFERROR(RTD("cqg.rtd", ,"ContractData",C20, "PerCentNetLastTrade",, "T")/100,"") ->  | K20: =RTD("cqg.rtd", ,"ContractData", C20, "T_CVol",, "T") -> 32 | L20: 20 | M20: =IFERROR(RANK($J20,$J$1:J$78)+COUNTIF($J$1:J20,J20)-1,"") ->  | N20: S.US.EFX
A21: S.US.EMR | B21: 1 | C21: S.US.EMR | D21: =RTD("cqg.rtd", ,"ContractData",C21, "LongDescription",, "T") -> Emerson Electric Co | H21: =RTD("cqg.rtd", ,"ContractData",C21, "LastTradeToday",, "T") ->  | I21: =RTD("cqg.rtd", ,"ContractData",C21, "NetLastTradeToday",, "T") ->  | J21: =IFERROR(RTD("cqg.rtd", ,"ContractData",C21, "PerCentNetLastTrade",, "T")/100,"") ->  | K21: =RTD("cqg.rtd", ,"ContractData", C21, "T_CVol",, "T") -> 486 | L21: 21 | M21: =IFERROR(RANK($J21,$J$1:J$78)+COUNTIF($J$1:J21,J21)-1,"") ->  | N21: S.US.EMR
A22: S.US.ETN | B22: 1 | C22: S.US.ETN | D22: =RTD("cqg.rtd", ,"ContractData",C22, "LongDescription",, "T") -> Eaton Corporation | H22: =RTD("cqg.rtd", ,"ContractData",C22, "LastTradeToday",, "T") ->  | I22: =RTD("cqg.rtd", ,"ContractData",C22, "NetLastTradeToday",, "T") ->  | J22: =IFERROR(RTD("cqg.rtd", ,"ContractData",C22, "PerCentNetLastTrade",, "T")/100,"") ->  | K22: =RTD("cqg.rtd", ,"ContractData", C22, "T_CVol",, "T") -> 7639 | L22: 22 | M22: =IFERROR(RANK($J22,$J$1:J$78)+COUNTIF($J$1:J22,J22)-1,"") ->  | N22: S.US.ETN
A23: S.US.EXPD | B23: 1 | C23: S.US.EXPD | D23: =RTD("cqg.rtd", ,"ContractData",C23, "LongDescription",, "T") -> Expeditors Intl of WA Inc | H23: =RTD("cqg.rtd", ,"ContractData",C23, "LastTradeToday",, "T") ->  | I23: =RTD("cqg.rtd", ,"ContractData",C23, "NetLastTradeToday",, "T") ->  | J23: =IFERROR(RTD("cqg.rtd", ,"ContractData",C23, "PerCentNetLastTrade",, "T")/100,"") ->  | K23: =RTD("cqg.rtd", ,"ContractData", C23, "T_CVol",, "T") -> 0 | L23: 23 | M23: =IFERROR(RANK($J23,$J$1:J$78)+COUNTIF($J$1:J23,J23)-1,"") ->  | N23: S.US.EXPD
A24: S.US.FAST | B24: 1 | C24: S.US.FAST | D24: =RTD("cqg.rtd", ,"ContractData",C24, "LongDescription",, "T") -> Fastenal Co | H24: =RTD("cqg.rtd", ,"ContractData",C24, "LastTradeToday",, "T") ->  | I24: =RTD("cqg.rtd", ,"ContractData",C24, "NetLastTradeToday",, "T") ->  | J24: =IFERROR(RTD("cqg.rtd", ,"ContractData",C24, "PerCentNetLastTrade",, "T")/100,"") ->  | K24: =RTD("cqg.rtd", ,"ContractData", C24, "T_CVol",, "T") -> 2013 | L24: 24 | M24: =IFERROR(RANK($J24,$J$1:J$78)+COUNTIF($J$1:J24,J24)-1,"") ->  | N24: S.US.FAST
A25: S.US.FDX | B25: 1 | C25: S.US.FDX | D25: =RTD("cqg.rtd", ,"ContractData",C25, "LongDescription",, "T") -> FedEx Corp | H25: =RTD("cqg.rtd", ,"ContractData",C25, "LastTradeToday",, "T") ->  | I25: =RTD("cqg.rtd", ,"ContractData",C25, "NetLastTradeToday",, "T") ->  | J25: =IFERROR(RTD("cqg.rtd", ,"ContractData",C25, "PerCentNetLastTrade",, "T")/100,"") ->  | K25: =RTD("cqg.rtd", ,"ContractData", C25, "T_CVol",, "T") -> 815 | L25: 25 | M25: =IFERROR(RANK($J25,$J$1:J$78)+COUNTIF($J$1:J25,J25)-1,"") ->  | N25: S.US.FDX
A26: S.US.FTV | B26: 1 | C26: S.US.FTV | D26: =RTD("cqg.rtd", ,"ContractData",C26, "LongDescription",, "T") -> Fortive Corporation | H26: =RTD("cqg.rtd", ,"ContractData",C26, "LastTradeToday",, "T") ->  | I26: =RTD("cqg.rtd", ,"ContractData",C26, "NetLastTradeToday",, "T") ->  | J26: =IFERROR(RTD("cqg.rtd", ,"ContractData",C26, "PerCentNetLastTrade",, "T")/100,"") ->  | K26: =RTD("cqg.rtd", ,"ContractData", C26, "T_CVol",, "T") -> 27 | L26: 26 | M26: =IFERROR(RANK($J26,$J$1:J$78)+COUNTIF($J$1:J26,J26)-1,"") ->  | N26: S.US.FTV
A27: S.US.GD | B27: 1 | C27: S.US.GD | D27: =RTD("cqg.rtd", ,"ContractData",C27, "LongDescription",, "T") -> General Dynamics Corp | H27: =RTD("cqg.rtd", ,"ContractData",C27, "LastTradeToday",, "T") ->  | I27: =RTD("cqg.rtd", ,"ContractData",C27, "NetLastTradeToday",, "T") ->  | J27: =IFERROR(RTD("cqg.rtd", ,"ContractData",C27, "PerCentNetLastTrade",, "T")/100,"") ->  | K27: =RTD("cqg.rtd", ,"ContractData", C27, "T_CVol",, "T") -> 901 | L27: 27 | M27: =IFERROR(RANK($J27,$J$1:J$78)+COUNTIF($J$1:J27,J27)-1,"") ->  | N27: S.US.GD
A28: S.US.GE | B28: 1 | C28: S.US.GE | D28: =RTD("cqg.rtd", ,"ContractData",C28, "LongDescription",, "T") -> General Electric Co | H28: =RTD("cqg.rtd", ,"ContractData",C28, "LastTradeToday",, "T") ->  | I28: =RTD("cqg.rtd", ,"ContractData",C28, "NetLastTradeToday",, "T") ->  | J28: =IFERROR(RTD("cqg.rtd", ,"ContractData",C28, "PerCentNetLastTrade",, "T")/100,"") ->  | K28: =RTD("cqg.rtd", ,"ContractData", C28, "T_CVol",, "T") -> 4869 | L28: 28 | M28: =IFERROR(RANK($J28,$J$1:J$78)+COUNTIF($J$1:J28,J28)-1,"") ->  | N28: S.US.GE
A29: S.US.GEV | B29: 1 | C29: S.US.GEV | D29: =RTD("cqg.rtd", ,"ContractData",C29, "LongDescription",, "T") -> GE Vernova Inc. | H29: =RTD("cqg.rtd", ,"ContractData",C29, "LastTradeToday",, "T") ->  | I29: =RTD("cqg.rtd", ,"ContractData",C29, "NetLastTradeToday",, "T") ->  | J29: =IFERROR(RTD("cqg.rtd", ,"ContractData",C29, "PerCentNetLastTrade",, "T")/100,"") ->  | K29: =RTD("cqg.rtd", ,"ContractData", C29, "T_CVol",, "T") -> 45005 | L29: 29 | M29: =IFERROR(RANK($J29,$J$1:J$78)+COUNTIF($J$1:J29,J29)-1,"") ->  | N29: S.US.GEV
A30: S.US.GNRC | B30: 1 | C30: S.US.GNRC | D30: =RTD("cqg.rtd", ,"ContractData",C30, "LongDescription",, "T") -> Generac Holdings Inc. | H30: =RTD("cqg.rtd", ,"ContractData",C30, "LastTradeToday",, "T") ->  | I30: =RTD("cqg.rtd", ,"ContractData",C30, "NetLastTradeToday",, "T") ->  | J30: =IFERROR(RTD("cqg.rtd", ,"ContractData",C30, "PerCentNetLastTrade",, "T")/100,"") ->  | K30: =RTD("cqg.rtd", ,"ContractData", C30, "T_CVol",, "T") -> 181 | L30: 30 | M30: =IFERROR(RANK($J30,$J$1:J$78)+COUNTIF($J$1:J30,J30)-1,"") ->  | N30: S.US.GNRC
A31: S.US.GWW | B31: 1 | C31: S.US.GWW | D31: =RTD("cqg.rtd", ,"ContractData",C31, "LongDescription",, "T") -> Grainger (WW) Inc | H31: =RTD("cqg.rtd", ,"ContractData",C31, "LastTradeToday",, "T") ->  | I31: =RTD("cqg.rtd", ,"ContractData",C31, "NetLastTradeToday",, "T") ->  | J31: =IFERROR(RTD("cqg.rtd", ,"ContractData",C31, "PerCentNetLastTrade",, "T")/100,"") ->  | K31: =RTD("cqg.rtd", ,"ContractData", C31, "T_CVol",, "T") -> 2 | L31: 31 | M31: =IFERROR(RANK($J31,$J$1:J$78)+COUNTIF($J$1:J31,J31)-1,"") ->  | N31: S.US.GWW
A32: S.US.HII | B32: 1 | C32: S.US.HII | D32: =RTD("cqg.rtd", ,"ContractData",C32, "LongDescription",, "T") -> Huntington Ingalls Industries | H32: =RTD("cqg.rtd", ,"ContractData",C32, "LastTradeToday",, "T") ->  | I32: =RTD("cqg.rtd", ,"ContractData",C32, "NetLastTradeToday",, "T") ->  | J32: =IFERROR(RTD("cqg.rtd", ,"ContractData",C32, "PerCentNetLastTrade",, "T")/100,"") ->  | K32: =RTD("cqg.rtd", ,"ContractData", C32, "T_CVol",, "T") -> 203 | L32: 32 | M32: =IFERROR(RANK($J32,$J$1:J$78)+COUNTIF($J$1:J32,J32)-1,"") ->  | N32: S.US.HII
A33: S.US.HON | B33: 1 | C33: S.US.HON | D33: =RTD("cqg.rtd", ,"ContractData",C33, "LongDescription",, "T") -> Honeywell Intl | H33: =RTD("cqg.rtd", ,"ContractData",C33, "LastTradeToday",, "T") ->  | I33: =RTD("cqg.rtd", ,"ContractData",C33, "NetLastTradeToday",, "T") ->  | J33: =IFERROR(RTD("cqg.rtd", ,"ContractData",C33, "PerCentNetLastTrade",, "T")/100,"") ->  | K33: =RTD("cqg.rtd", ,"ContractData", C33, "T_CVol",, "T") -> 4452 | L33: 33 | M33: =IFERROR(RANK($J33,$J$1:J$78)+COUNTIF($J$1:J33,J33)-1,"") ->  | N33: S.US.HON
A34: S.US.HUBB | B34: 1 | C34: S.US.HUBB | D34: =RTD("cqg.rtd", ,"ContractData",C34, "LongDescription",, "T") -> Hubbell Inc Cls B | H34: =RTD("cqg.rtd", ,"ContractData",C34, "LastTradeToday",, "T") ->  | I34: =RTD("cqg.rtd", ,"ContractData",C34, "NetLastTradeToday",, "T") ->  | J34: =IFERROR(RTD("cqg.rtd", ,"ContractData",C34, "PerCentNetLastTrade",, "T")/100,"") ->  | K34: =RTD("cqg.rtd", ,"ContractData", C34, "T_CVol",, "T") -> 5 | L34: 34 | M34: =IFERROR(RANK($J34,$J$1:J$78)+COUNTIF($J$1:J34,J34)-1,"") ->  | N34: S.US.HUBB
A35: S.US.HWM | B35: 1 | C35: S.US.HWM | D35: =RTD("cqg.rtd", ,"ContractData",C35, "LongDescription",, "T") -> Howmet Aerospace Inc. | H35: =RTD("cqg.rtd", ,"ContractData",C35, "LastTradeToday",, "T") ->  | I35: =RTD("cqg.rtd", ,"ContractData",C35, "NetLastTradeToday",, "T") ->  | J35: =IFERROR(RTD("cqg.rtd", ,"ContractData",C35, "PerCentNetLastTrade",, "T")/100,"") ->  | K35: =RTD("cqg.rtd", ,"ContractData", C35, "T_CVol",, "T") -> 940 | L35: 35 | M35: =IFERROR(RANK($J35,$J$1:J$78)+COUNTIF($J$1:J35,J35)-1,"") ->  | N35: S.US.HWM
A36: S.US.IEX | B36: 1 | C36: S.US.IEX | D36: =RTD("cqg.rtd", ,"ContractData",C36, "LongDescription",, "T") -> Idex Corp | H36: =RTD("cqg.rtd", ,"ContractData",C36, "LastTradeToday",, "T") ->  | I36: =RTD("cqg.rtd", ,"ContractData",C36, "NetLastTradeToday",, "T") ->  | J36: =IFERROR(RTD("cqg.rtd", ,"ContractData",C36, "PerCentNetLastTrade",, "T")/100,"") ->  | K36: =RTD("cqg.rtd", ,"ContractData", C36, "T_CVol",, "T") -> 415 | L36: 36 | M36: =IFERROR(RANK($J36,$J$1:J$78)+COUNTIF($J$1:J36,J36)-1,"") ->  | N36: S.US.IEX
A37: S.US.IR | B37: 1 | C37: S.US.IR | D37: =RTD("cqg.rtd", ,"ContractData",C37, "LongDescription",, "T") -> Ingersoll Rand Inc. | H37: =RTD("cqg.rtd", ,"ContractData",C37, "LastTradeToday",, "T") ->  | I37: =RTD("cqg.rtd", ,"ContractData",C37, "NetLastTradeToday",, "T") ->  | J37: =IFERROR(RTD("cqg.rtd", ,"ContractData",C37, "PerCentNetLastTrade",, "T")/100,"") ->  | K37: =RTD("cqg.rtd", ,"ContractData", C37, "T_CVol",, "T") -> 110 | L37: 37 | M37: =IFERROR(RANK($J37,$J$1:J$78)+COUNTIF($J$1:J37,J37)-1,"") ->  | N37: S.US.IR
A38: S.US.ITW | B38: 1 | C38: S.US.ITW | D38: =RTD("cqg.rtd", ,"ContractData",C38, "LongDescription",, "T") -> Illinois Tools Works Inc | H38: =RTD("cqg.rtd", ,"ContractData",C38, "LastTradeToday",, "T") ->  | I38: =RTD("cqg.rtd", ,"ContractData",C38, "NetLastTradeToday",, "T") ->  | J38: =IFERROR(RTD("cqg.rtd", ,"ContractData",C38, "PerCentNetLastTrade",, "T")/100,"") ->  | K38: =RTD("cqg.rtd", ,"ContractData", C38, "T_CVol",, "T") -> 87 | L38: 38 | M38: =IFERROR(RANK($J38,$J$1:J$78)+COUNTIF($J$1:J38,J38)-1,"") ->  | N38: S.US.ITW
A39: S.US.J | B39: 1 | C39: S.US.J | D39: =RTD("cqg.rtd", ,"ContractData",C39, "LongDescription",, "T") -> Jacobs Solutions Inc. | H39: =RTD("cqg.rtd", ,"ContractData",C39, "LastTradeToday",, "T") ->  | I39: =RTD("cqg.rtd", ,"ContractData",C39, "NetLastTradeToday",, "T") ->  | J39: =IFERROR(RTD("cqg.rtd", ,"ContractData",C39, "PerCentNetLastTrade",, "T")/100,"") ->  | K39: =RTD("cqg.rtd", ,"ContractData", C39, "T_CVol",, "T") -> 56 | L39: 39 | M39: =IFERROR(RANK($J39,$J$1:J$78)+COUNTIF($J$1:J39,J39)-1,"") ->  | N39: S.US.J
A40: S.US.JBHT | B40: 1 | C40: S.US.JBHT | D40: =RTD("cqg.rtd", ,"ContractData",C40, "LongDescription",, "T") -> Hunt (JB) Transport Svcs | H40: =RTD("cqg.rtd", ,"ContractData",C40, "LastTradeToday",, "T") ->  | I40: =RTD("cqg.rtd", ,"ContractData",C40, "NetLastTradeToday",, "T") ->  | J40: =IFERROR(RTD("cqg.rtd", ,"ContractData",C40, "PerCentNetLastTrade",, "T")/100,"") ->  | K40: =RTD("cqg.rtd", ,"ContractData", C40, "T_CVol",, "T") -> 6 | L40: 40 | M40: =IFERROR(RANK($J40,$J$1:J$78)+COUNTIF($J$1:J40,J40)-1,"") ->  | N40: S.US.JBHT
A41: S.US.JCI | B41: 1 | C41: S.US.JCI | D41: =RTD("cqg.rtd", ,"ContractData",C41, "LongDescription",, "T") -> Johnson Controls International plc | H41: =RTD("cqg.rtd", ,"ContractData",C41, "LastTradeToday",, "T") ->  | I41: =RTD("cqg.rtd", ,"ContractData",C41, "NetLastTradeToday",, "T") ->  | J41: =IFERROR(RTD("cqg.rtd", ,"ContractData",C41, "PerCentNetLastTrade",, "T")/100,"") ->  | K41: =RTD("cqg.rtd", ,"ContractData", C41, "T_CVol",, "T") -> 239 | L41: 41 | M41: =IFERROR(RANK($J41,$J$1:J$78)+COUNTIF($J$1:J41,J41)-1,"") ->  | N41: S.US.JCI
A42: S.US.LDOS | B42: 1 | C42: S.US.LDOS | D42: =RTD("cqg.rtd", ,"ContractData",C42, "LongDescription",, "T") -> Leidos Holdings, Inc. | H42: =RTD("cqg.rtd", ,"ContractData",C42, "LastTradeToday",, "T") ->  | I42: =RTD("cqg.rtd", ,"ContractData",C42, "NetLastTradeToday",, "T") ->  | J42: =IFERROR(RTD("cqg.rtd", ,"ContractData",C42, "PerCentNetLastTrade",, "T")/100,"") ->  | K42: =RTD("cqg.rtd", ,"ContractData", C42, "T_CVol",, "T") -> 100 | L42: 42 | M42: =IFERROR(RANK($J42,$J$1:J$78)+COUNTIF($J$1:J42,J42)-1,"") ->  | N42: S.US.LDOS
A43: S.US.LHX | B43: 1 | C43: S.US.LHX | D43: =RTD("cqg.rtd", ,"ContractData",C43, "LongDescription",, "T") -> L3Harris Technologies, Inc. | H43: =RTD("cqg.rtd", ,"ContractData",C43, "LastTradeToday",, "T") ->  | I43: =RTD("cqg.rtd", ,"ContractData",C43, "NetLastTradeToday",, "T") ->  | J43: =IFERROR(RTD("cqg.rtd", ,"ContractData",C43, "PerCentNetLastTrade",, "T")/100,"") ->  | K43: =RTD("cqg.rtd", ,"ContractData", C43, "T_CVol",, "T") -> 530 | L43: 43 | M43: =IFERROR(RANK($J43,$J$1:J$78)+COUNTIF($J$1:J43,J43)-1,"") ->  | N43: S.US.LHX
A44: S.US.LII | B44: 1 | C44: S.US.LII | D44: =RTD("cqg.rtd", ,"ContractData",C44, "LongDescription",, "T") -> Lennox Internatl | H44: =RTD("cqg.rtd", ,"ContractData",C44, "LastTradeToday",, "T") ->  | I44: =RTD("cqg.rtd", ,"ContractData",C44, "NetLastTradeToday",, "T") ->  | J44: =IFERROR(RTD("cqg.rtd", ,"ContractData",C44, "PerCentNetLastTrade",, "T")/100,"") ->  | K44: =RTD("cqg.rtd", ,"ContractData", C44, "T_CVol",, "T") -> 351 | L44: 44 | M44: =IFERROR(RANK($J44,$J$1:J$78)+COUNTIF($J$1:J44,J44)-1,"") ->  | N44: S.US.LII
A45: S.US.LMT | B45: 1 | C45: S.US.LMT | D45: =RTD("cqg.rtd", ,"ContractData",C45, "LongDescription",, "T") -> Lockheed Martin Corp | H45: =RTD("cqg.rtd", ,"ContractData",C45, "LastTradeToday",, "T") ->  | I45: =RTD("cqg.rtd", ,"ContractData",C45, "NetLastTradeToday",, "T") ->  | J45: =IFERROR(RTD("cqg.rtd", ,"ContractData",C45, "PerCentNetLastTrade",, "T")/100,"") ->  | K45: =RTD("cqg.rtd", ,"ContractData", C45, "T_CVol",, "T") -> 11331 | L45: 45 | M45: =IFERROR(RANK($J45,$J$1:J$78)+COUNTIF($J$1:J45,J45)-1,"") ->  | N45: S.US.LMT
A46: S.US.LUV | B46: 1 | C46: S.US.LUV | D46: =RTD("cqg.rtd", ,"ContractData",C46, "LongDescription",, "T") -> Southwest Airlines Co | H46: =RTD("cqg.rtd", ,"ContractData",C46, "LastTradeToday",, "T") ->  | I46: =RTD("cqg.rtd", ,"ContractData",C46, "NetLastTradeToday",, "T") ->  | J46: =IFERROR(RTD("cqg.rtd", ,"ContractData",C46, "PerCentNetLastTrade",, "T")/100,"") ->  | K46: =RTD("cqg.rtd", ,"ContractData", C46, "T_CVol",, "T") -> 1808 | L46: 46 | M46: =IFERROR(RANK($J46,$J$1:J$78)+COUNTIF($J$1:J46,J46)-1,"") ->  | N46: S.US.LUV
A47: S.US.MAS | B47: 1 | C47: S.US.MAS | D47: =RTD("cqg.rtd", ,"ContractData",C47, "LongDescription",, "T") -> Masco Corporation | H47: =RTD("cqg.rtd", ,"ContractData",C47, "LastTradeToday",, "T") ->  | I47: =RTD("cqg.rtd", ,"ContractData",C47, "NetLastTradeToday",, "T") ->  | J47: =IFERROR(RTD("cqg.rtd", ,"ContractData",C47, "PerCentNetLastTrade",, "T")/100,"") ->  | K47: =RTD("cqg.rtd", ,"ContractData", C47, "T_CVol",, "T") -> 25 | L47: 47 | M47: =IFERROR(RANK($J47,$J$1:J$78)+COUNTIF($J$1:J47,J47)-1,"") ->  | N47: S.US.MAS
A48: S.US.MMM | B48: 1 | C48: S.US.MMM | D48: =RTD("cqg.rtd", ,"ContractData",C48, "LongDescription",, "T") -> 3M Company | H48: =RTD("cqg.rtd", ,"ContractData",C48, "LastTradeToday",, "T") ->  | I48: =RTD("cqg.rtd", ,"ContractData",C48, "NetLastTradeToday",, "T") ->  | J48: =IFERROR(RTD("cqg.rtd", ,"ContractData",C48, "PerCentNetLastTrade",, "T")/100,"") ->  | K48: =RTD("cqg.rtd", ,"ContractData", C48, "T_CVol",, "T") -> 790 | L48: 48 | M48: =IFERROR(RANK($J48,$J$1:J$78)+COUNTIF($J$1:J48,J48)-1,"") ->  | N48: S.US.MMM
A49: S.US.NDSN | B49: 1 | C49: S.US.NDSN | D49: =RTD("cqg.rtd", ,"ContractData",C49, "LongDescription",, "T") -> Nordson Corporation | H49: =RTD("cqg.rtd", ,"ContractData",C49, "LastTradeToday",, "T") ->  | I49: =RTD("cqg.rtd", ,"ContractData",C49, "NetLastTradeToday",, "T") ->  | J49: =IFERROR(RTD("cqg.rtd", ,"ContractData",C49, "PerCentNetLastTrade",, "T")/100,"") ->  | K49: =RTD("cqg.rtd", ,"ContractData", C49, "T_CVol",, "T") -> 5 | L49: 49 | M49: =IFERROR(RANK($J49,$J$1:J$78)+COUNTIF($J$1:J49,J49)-1,"") ->  | N49: S.US.NDSN | O49: =VLOOKUP($L49,$M$1:$N$78,2,FALSE) -> 
A50: S.US.NOC | B50: 1 | C50: S.US.NOC | D50: =RTD("cqg.rtd", ,"ContractData",C50, "LongDescription",, "T") -> Northrop Grumman Corporation | H50: =RTD("cqg.rtd", ,"ContractData",C50, "LastTradeToday",, "T") ->  | I50: =RTD("cqg.rtd", ,"ContractData",C50, "NetLastTradeToday",, "T") ->  | J50: =IFERROR(RTD("cqg.rtd", ,"ContractData",C50, "PerCentNetLastTrade",, "T")/100,"") ->  | K50: =RTD("cqg.rtd", ,"ContractData", C50, "T_CVol",, "T") -> 1179 | L50: 50 | M50: =IFERROR(RANK($J50,$J$1:J$78)+COUNTIF($J$1:J50,J50)-1,"") ->  | N50: S.US.NOC
A51: S.US.NSC | B51: 1 | C51: S.US.NSC | D51: =RTD("cqg.rtd", ,"ContractData",C51, "LongDescription",, "T") -> Norfolk Southern Corp | H51: =RTD("cqg.rtd", ,"ContractData",C51, "LastTradeToday",, "T") ->  | I51: =RTD("cqg.rtd", ,"ContractData",C51, "NetLastTradeToday",, "T") ->  | J51: =IFERROR(RTD("cqg.rtd", ,"ContractData",C51, "PerCentNetLastTrade",, "T")/100,"") ->  | K51: =RTD("cqg.rtd", ,"ContractData", C51, "T_CVol",, "T") -> 435 | L51: 51 | M51: =IFERROR(RANK($J51,$J$1:J$78)+COUNTIF($J$1:J51,J51)-1,"") ->  | N51: S.US.NSC
A52: S.US.ODFL | B52: 1 | C52: S.US.ODFL | D52: =RTD("cqg.rtd", ,"ContractData",C52, "LongDescription",, "T") -> Old Dominion Freight Line Inc | H52: =RTD("cqg.rtd", ,"ContractData",C52, "LastTradeToday",, "T") ->  | I52: =RTD("cqg.rtd", ,"ContractData",C52, "NetLastTradeToday",, "T") ->  | J52: =IFERROR(RTD("cqg.rtd", ,"ContractData",C52, "PerCentNetLastTrade",, "T")/100,"") ->  | K52: =RTD("cqg.rtd", ,"ContractData", C52, "T_CVol",, "T") -> 79 | L52: 52 | M52: =IFERROR(RANK($J52,$J$1:J$78)+COUNTIF($J$1:J52,J52)-1,"") ->  | N52: S.US.ODFL
A53: S.US.OTIS | B53: 1 | C53: S.US.OTIS | D53: =RTD("cqg.rtd", ,"ContractData",C53, "LongDescription",, "T") -> Otis Worldwide Corporation | H53: =RTD("cqg.rtd", ,"ContractData",C53, "LastTradeToday",, "T") ->  | I53: =RTD("cqg.rtd", ,"ContractData",C53, "NetLastTradeToday",, "T") ->  | J53: =IFERROR(RTD("cqg.rtd", ,"ContractData",C53, "PerCentNetLastTrade",, "T")/100,"") ->  | K53: =RTD("cqg.rtd", ,"ContractData", C53, "T_CVol",, "T") -> 1924 | L53: 53 | M53: =IFERROR(RANK($J53,$J$1:J$78)+COUNTIF($J$1:J53,J53)-1,"") ->  | N53: S.US.OTIS
A54: S.US.PAYC | B54: 1 | C54: S.US.PAYC | D54: =RTD("cqg.rtd", ,"ContractData",C54, "LongDescription",, "T") -> Paycom Software, Inc. | H54: =RTD("cqg.rtd", ,"ContractData",C54, "LastTradeToday",, "T") ->  | I54: =RTD("cqg.rtd", ,"ContractData",C54, "NetLastTradeToday",, "T") ->  | J54: =IFERROR(RTD("cqg.rtd", ,"ContractData",C54, "PerCentNetLastTrade",, "T")/100,"") ->  | K54: =RTD("cqg.rtd", ,"ContractData", C54, "T_CVol",, "T") -> 252 | L54: 54 | M54: =IFERROR(RANK($J54,$J$1:J$78)+COUNTIF($J$1:J54,J54)-1,"") ->  | N54: S.US.PAYC
A55: S.US.PAYX | B55: 1 | C55: S.US.PAYX | D55: =RTD("cqg.rtd", ,"ContractData",C55, "LongDescription",, "T") -> Paychex Inc | H55: =RTD("cqg.rtd", ,"ContractData",C55, "LastTradeToday",, "T") ->  | I55: =RTD("cqg.rtd", ,"ContractData",C55, "NetLastTradeToday",, "T") ->  | J55: =IFERROR(RTD("cqg.rtd", ,"ContractData",C55, "PerCentNetLastTrade",, "T")/100,"") ->  | K55: =RTD("cqg.rtd", ,"ContractData", C55, "T_CVol",, "T") -> 76 | L55: 55 | M55: =IFERROR(RANK($J55,$J$1:J$78)+COUNTIF($J$1:J55,J55)-1,"") ->  | N55: S.US.PAYX
A56: S.US.PCAR | B56: 1 | C56: S.US.PCAR | D56: =RTD("cqg.rtd", ,"ContractData",C56, "LongDescription",, "T") -> PACCAR Inc | H56: =RTD("cqg.rtd", ,"ContractData",C56, "LastTradeToday",, "T") ->  | I56: =RTD("cqg.rtd", ,"ContractData",C56, "NetLastTradeToday",, "T") ->  | J56: =IFERROR(RTD("cqg.rtd", ,"ContractData",C56, "PerCentNetLastTrade",, "T")/100,"") ->  | K56: =RTD("cqg.rtd", ,"ContractData", C56, "T_CVol",, "T") -> 2260 | L56: 56 | M56: =IFERROR(RANK($J56,$J$1:J$78)+COUNTIF($J$1:J56,J56)-1,"") ->  | N56: S.US.PCAR
A57: S.US.PH | B57: 1 | C57: S.US.PH | D57: =RTD("cqg.rtd", ,"ContractData",C57, "LongDescription",, "T") -> Parker-Hannifin Corp | H57: =RTD("cqg.rtd", ,"ContractData",C57, "LastTradeToday",, "T") ->  | I57: =RTD("cqg.rtd", ,"ContractData",C57, "NetLastTradeToday",, "T") ->  | J57: =IFERROR(RTD("cqg.rtd", ,"ContractData",C57, "PerCentNetLastTrade",, "T")/100,"") ->  | K57: =RTD("cqg.rtd", ,"ContractData", C57, "T_CVol",, "T") -> 23 | L57: 57 | M57: =IFERROR(RANK($J57,$J$1:J$78)+COUNTIF($J$1:J57,J57)-1,"") ->  | N57: S.US.PH
A58: S.US.PNR | B58: 1 | C58: S.US.PNR | D58: =RTD("cqg.rtd", ,"ContractData",C58, "LongDescription",, "T") -> Pentair Ltd. | H58: =RTD("cqg.rtd", ,"ContractData",C58, "LastTradeToday",, "T") ->  | I58: =RTD("cqg.rtd", ,"ContractData",C58, "NetLastTradeToday",, "T") ->  | J58: =IFERROR(RTD("cqg.rtd", ,"ContractData",C58, "PerCentNetLastTrade",, "T")/100,"") ->  | K58: =RTD("cqg.rtd", ,"ContractData", C58, "T_CVol",, "T") -> 40 | L58: 58 | M58: =IFERROR(RANK($J58,$J$1:J$78)+COUNTIF($J$1:J58,J58)-1,"") ->  | N58: S.US.PNR
A59: S.US.PWR | B59: 1 | C59: S.US.PWR | D59: =RTD("cqg.rtd", ,"ContractData",C59, "LongDescription",, "T") -> Quanta Services Inc | H59: =RTD("cqg.rtd", ,"ContractData",C59, "LastTradeToday",, "T") ->  | I59: =RTD("cqg.rtd", ,"ContractData",C59, "NetLastTradeToday",, "T") ->  | J59: =IFERROR(RTD("cqg.rtd", ,"ContractData",C59, "PerCentNetLastTrade",, "T")/100,"") ->  | K59: =RTD("cqg.rtd", ,"ContractData", C59, "T_CVol",, "T") -> 1575 | L59: 59 | M59: =IFERROR(RANK($J59,$J$1:J$78)+COUNTIF($J$1:J59,J59)-1,"") ->  | N59: S.US.PWR
A60: S.US.ROK | B60: 1 | C60: S.US.ROK | D60: =RTD("cqg.rtd", ,"ContractData",C60, "LongDescription",, "T") -> Rockwell Automation Inc | H60: =RTD("cqg.rtd", ,"ContractData",C60, "LastTradeToday",, "T") ->  | I60: =RTD("cqg.rtd", ,"ContractData",C60, "NetLastTradeToday",, "T") ->  | J60: =IFERROR(RTD("cqg.rtd", ,"ContractData",C60, "PerCentNetLastTrade",, "T")/100,"") ->  | K60: =RTD("cqg.rtd", ,"ContractData", C60, "T_CVol",, "T") -> 302 | L60: 60 | M60: =IFERROR(RANK($J60,$J$1:J$78)+COUNTIF($J$1:J60,J60)-1,"") ->  | N60: S.US.ROK
A61: S.US.ROL | B61: 1 | C61: S.US.ROL | D61: =RTD("cqg.rtd", ,"ContractData",C61, "LongDescription",, "T") -> Rollins Inc | H61: =RTD("cqg.rtd", ,"ContractData",C61, "LastTradeToday",, "T") ->  | I61: =RTD("cqg.rtd", ,"ContractData",C61, "NetLastTradeToday",, "T") ->  | J61: =IFERROR(RTD("cqg.rtd", ,"ContractData",C61, "PerCentNetLastTrade",, "T")/100,"") ->  | K61: =RTD("cqg.rtd", ,"ContractData", C61, "T_CVol",, "T") -> 59 | L61: 61 | M61: =IFERROR(RANK($J61,$J$1:J$78)+COUNTIF($J$1:J61,J61)-1,"") ->  | N61: S.US.ROL
A62: S.US.RSG | B62: 1 | C62: S.US.RSG | D62: =RTD("cqg.rtd", ,"ContractData",C62, "LongDescription",, "T") -> Republic Services Inc ClA | H62: =RTD("cqg.rtd", ,"ContractData",C62, "LastTradeToday",, "T") ->  | I62: =RTD("cqg.rtd", ,"ContractData",C62, "NetLastTradeToday",, "T") ->  | J62: =IFERROR(RTD("cqg.rtd", ,"ContractData",C62, "PerCentNetLastTrade",, "T")/100,"") ->  | K62: =RTD("cqg.rtd", ,"ContractData", C62, "T_CVol",, "T") -> 79 | L62: 62 | M62: =IFERROR(RANK($J62,$J$1:J$78)+COUNTIF($J$1:J62,J62)-1,"") ->  | N62: S.US.RSG
A63: S.US.RTX | B63: 1 | C63: S.US.RTX | D63: =RTD("cqg.rtd", ,"ContractData",C63, "LongDescription",, "T") -> RTX Corporation | H63: =RTD("cqg.rtd", ,"ContractData",C63, "LastTradeToday",, "T") ->  | I63: =RTD("cqg.rtd", ,"ContractData",C63, "NetLastTradeToday",, "T") ->  | J63: =IFERROR(RTD("cqg.rtd", ,"ContractData",C63, "PerCentNetLastTrade",, "T")/100,"") ->  | K63: =RTD("cqg.rtd", ,"ContractData", C63, "T_CVol",, "T") -> 7657 | L63: 63 | M63: =IFERROR(RANK($J63,$J$1:J$78)+COUNTIF($J$1:J63,J63)-1,"") ->  | N63: S.US.RTX
A64: S.US.SNA | B64: 1 | C64: S.US.SNA | D64: =RTD("cqg.rtd", ,"ContractData",C64, "LongDescription",, "T") -> Snap-On Tools Corp | H64: =RTD("cqg.rtd", ,"ContractData",C64, "LastTradeToday",, "T") ->  | I64: =RTD("cqg.rtd", ,"ContractData",C64, "NetLastTradeToday",, "T") ->  | J64: =IFERROR(RTD("cqg.rtd", ,"ContractData",C64, "PerCentNetLastTrade",, "T")/100,"") ->  | K64: =RTD("cqg.rtd", ,"ContractData", C64, "T_CVol",, "T") -> 0 | L64: 64 | M64: =IFERROR(RANK($J64,$J$1:J$78)+COUNTIF($J$1:J64,J64)-1,"") ->  | N64: S.US.SNA
A65: S.US.SWK | B65: 1 | C65: S.US.SWK | D65: =RTD("cqg.rtd", ,"ContractData",C65, "LongDescription",, "T") -> Stanley Black and Decker Inc | H65: =RTD("cqg.rtd", ,"ContractData",C65, "LastTradeToday",, "T") ->  | I65: =RTD("cqg.rtd", ,"ContractData",C65, "NetLastTradeToday",, "T") ->  | J65: =IFERROR(RTD("cqg.rtd", ,"ContractData",C65, "PerCentNetLastTrade",, "T")/100,"") ->  | K65: =RTD("cqg.rtd", ,"ContractData", C65, "T_CVol",, "T") -> 252 | L65: 65 | M65: =IFERROR(RANK($J65,$J$1:J$78)+COUNTIF($J$1:J65,J65)-1,"") ->  | N65: S.US.SWK
A66: S.US.TDG | B66: =IF(J66>0,1,0) -> 1 | C66: S.US.TDG | D66: =RTD("cqg.rtd", ,"ContractData",C66, "LongDescription",, "T") -> TransDigm Group | H66: =RTD("cqg.rtd", ,"ContractData",C66, "LastTradeToday",, "T") ->  | I66: =RTD("cqg.rtd", ,"ContractData",C66, "NetLastTradeToday",, "T") ->  | J66: =IFERROR(RTD("cqg.rtd", ,"ContractData",C66, "PerCentNetLastTrade",, "T")/100,"") ->  | K66: =RTD("cqg.rtd", ,"ContractData", C66, "T_CVol",, "T") -> 17 | L66: 66 | M66: =IFERROR(RANK($J66,$J$1:J$78)+COUNTIF($J$1:J66,J66)-1,"") ->  | N66: =C66 -> S.US.TDG
A67: S.US.TT | B67: 1 | C67: S.US.TT | D67: =RTD("cqg.rtd", ,"ContractData",C67, "LongDescription",, "T") -> Trane Technologies plc | H67: =RTD("cqg.rtd", ,"ContractData",C67, "LastTradeToday",, "T") ->  | I67: =RTD("cqg.rtd", ,"ContractData",C67, "NetLastTradeToday",, "T") ->  | J67: =IFERROR(RTD("cqg.rtd", ,"ContractData",C67, "PerCentNetLastTrade",, "T")/100,"") ->  | K67: =RTD("cqg.rtd", ,"ContractData", C67, "T_CVol",, "T") -> 343 | L67: =L66+1 -> 67 | M67: =IFERROR(RANK($J67,$J$1:J$78)+COUNTIF($J$1:J67,J67)-1,"") ->  | N67: S.US.TT
A68: S.US.TXT | B68: 1 | C68: S.US.TXT | D68: =RTD("cqg.rtd", ,"ContractData",C68, "LongDescription",, "T") -> Textron Inc | H68: =RTD("cqg.rtd", ,"ContractData",C68, "LastTradeToday",, "T") ->  | I68: =RTD("cqg.rtd", ,"ContractData",C68, "NetLastTradeToday",, "T") ->  | J68: =IFERROR(RTD("cqg.rtd", ,"ContractData",C68, "PerCentNetLastTrade",, "T")/100,"") ->  | K68: =RTD("cqg.rtd", ,"ContractData", C68, "T_CVol",, "T") -> 1813 | L68: 68 | M68: =IFERROR(RANK($J68,$J$1:J$78)+COUNTIF($J$1:J68,J68)-1,"") ->  | N68: S.US.TXT
A69: S.US.UAL | B69: 1 | C69: S.US.UAL | D69: =RTD("cqg.rtd", ,"ContractData",C69, "LongDescription",, "T") -> United Airlines Holdings, Inc. | H69: =RTD("cqg.rtd", ,"ContractData",C69, "LastTradeToday",, "T") ->  | I69: =RTD("cqg.rtd", ,"ContractData",C69, "NetLastTradeToday",, "T") ->  | J69: =IFERROR(RTD("cqg.rtd", ,"ContractData",C69, "PerCentNetLastTrade",, "T")/100,"") ->  | K69: =RTD("cqg.rtd", ,"ContractData", C69, "T_CVol",, "T") -> 1080 | L69: 69 | M69: =IFERROR(RANK($J69,$J$1:J$78)+COUNTIF($J$1:J69,J69)-1,"") ->  | N69: S.US.UAL
A70: S.US.UBER | B70: 1 | C70: S.US.UBER | D70: =RTD("cqg.rtd", ,"ContractData",C70, "LongDescription",, "T") -> Uber Technologies, Inc. | H70: =RTD("cqg.rtd", ,"ContractData",C70, "LastTradeToday",, "T") ->  | I70: =RTD("cqg.rtd", ,"ContractData",C70, "NetLastTradeToday",, "T") ->  | J70: =IFERROR(RTD("cqg.rtd", ,"ContractData",C70, "PerCentNetLastTrade",, "T")/100,"") ->  | K70: =RTD("cqg.rtd", ,"ContractData", C70, "T_CVol",, "T") -> 25622 | L70: 70 | M70: =IFERROR(RANK($J70,$J$1:J$78)+COUNTIF($J$1:J70,J70)-1,"") ->  | N70: S.US.UBER
A71: S.US.UNP | B71: 1 | C71: S.US.UNP | D71: =RTD("cqg.rtd", ,"ContractData",C71, "LongDescription",, "T") -> Union Pacific Corp | H71: =RTD("cqg.rtd", ,"ContractData",C71, "LastTradeToday",, "T") ->  | I71: =RTD("cqg.rtd", ,"ContractData",C71, "NetLastTradeToday",, "T") ->  | J71: =IFERROR(RTD("cqg.rtd", ,"ContractData",C71, "PerCentNetLastTrade",, "T")/100,"") ->  | K71: =RTD("cqg.rtd", ,"ContractData", C71, "T_CVol",, "T") -> 1399 | L71: 71 | M71: =IFERROR(RANK($J71,$J$1:J$78)+COUNTIF($J$1:J71,J71)-1,"") ->  | N71: S.US.UNP
A72: S.US.UPS | B72: 1 | C72: S.US.UPS | D72: =RTD("cqg.rtd", ,"ContractData",C72, "LongDescription",, "T") -> United Parcel Svc | H72: =RTD("cqg.rtd", ,"ContractData",C72, "LastTradeToday",, "T") ->  | I72: =RTD("cqg.rtd", ,"ContractData",C72, "NetLastTradeToday",, "T") ->  | J72: =IFERROR(RTD("cqg.rtd", ,"ContractData",C72, "PerCentNetLastTrade",, "T")/100,"") ->  | K72: =RTD("cqg.rtd", ,"ContractData", C72, "T_CVol",, "T") -> 5449 | L72: 72 | M72: =IFERROR(RANK($J72,$J$1:J$78)+COUNTIF($J$1:J72,J72)-1,"") ->  | N72: S.US.UPS
A73: S.US.URI | B73: 1 | C73: S.US.URI | D73: =RTD("cqg.rtd", ,"ContractData",C73, "LongDescription",, "T") -> United Rentals Inc | H73: =RTD("cqg.rtd", ,"ContractData",C73, "LastTradeToday",, "T") ->  | I73: =RTD("cqg.rtd", ,"ContractData",C73, "NetLastTradeToday",, "T") ->  | J73: =IFERROR(RTD("cqg.rtd", ,"ContractData",C73, "PerCentNetLastTrade",, "T")/100,"") ->  | K73: =RTD("cqg.rtd", ,"ContractData", C73, "T_CVol",, "T") -> 103 | L73: 73 | M73: =IFERROR(RANK($J73,$J$1:J$78)+COUNTIF($J$1:J73,J73)-1,"") ->  | N73: S.US.URI
A74: S.US.VLTO | B74: 1 | C74: S.US.VLTO | D74: =RTD("cqg.rtd", ,"ContractData",C74, "LongDescription",, "T") -> Veralto Corporation | H74: =RTD("cqg.rtd", ,"ContractData",C74, "LastTradeToday",, "T") ->  | I74: =RTD("cqg.rtd", ,"ContractData",C74, "NetLastTradeToday",, "T") ->  | J74: =IFERROR(RTD("cqg.rtd", ,"ContractData",C74, "PerCentNetLastTrade",, "T")/100,"") ->  | K74: =RTD("cqg.rtd", ,"ContractData", C74, "T_CVol",, "T") -> 60 | L74: 74 | M74: =IFERROR(RANK($J74,$J$1:J$78)+COUNTIF($J$1:J74,J74)-1,"") ->  | N74: S.US.VLTO
A75: S.US.VRSK | B75: 1 | C75: S.US.VRSK | D75: =RTD("cqg.rtd", ,"ContractData",C75, "LongDescription",, "T") -> Verisk Analytics, Inc. | H75: =RTD("cqg.rtd", ,"ContractData",C75, "LastTradeToday",, "T") ->  | I75: =RTD("cqg.rtd", ,"ContractData",C75, "NetLastTradeToday",, "T") ->  | J75: =IFERROR(RTD("cqg.rtd", ,"ContractData",C75, "PerCentNetLastTrade",, "T")/100,"") ->  | K75: =RTD("cqg.rtd", ,"ContractData", C75, "T_CVol",, "T") -> 25 | L75: 75 | M75: =IFERROR(RANK($J75,$J$1:J$78)+COUNTIF($J$1:J75,J75)-1,"") ->  | N75: S.US.VRSK
A76: S.US.WAB | B76: 1 | C76: S.US.WAB | D76: =RTD("cqg.rtd", ,"ContractData",C76, "LongDescription",, "T") -> Westinghouse Air Brake Co | H76: =RTD("cqg.rtd", ,"ContractData",C76, "LastTradeToday",, "T") ->  | I76: =RTD("cqg.rtd", ,"ContractData",C76, "NetLastTradeToday",, "T") ->  | J76: =IFERROR(RTD("cqg.rtd", ,"ContractData",C76, "PerCentNetLastTrade",, "T")/100,"") ->  | K76: =RTD("cqg.rtd", ,"ContractData", C76, "T_CVol",, "T") -> 30 | L76: 76 | M76: =IFERROR(RANK($J76,$J$1:J$78)+COUNTIF($J$1:J76,J76)-1,"") ->  | N76: S.US.WAB
A77: S.US.WM | B77: 1 | C77: S.US.WM | D77: =RTD("cqg.rtd", ,"ContractData",C77, "LongDescription",, "T") -> Waste Mgmt Inc New | H77: =RTD("cqg.rtd", ,"ContractData",C77, "LastTradeToday",, "T") ->  | I77: =RTD("cqg.rtd", ,"ContractData",C77, "NetLastTradeToday",, "T") ->  | J77: =IFERROR(RTD("cqg.rtd", ,"ContractData",C77, "PerCentNetLastTrade",, "T")/100,"") ->  | K77: =RTD("cqg.rtd", ,"ContractData", C77, "T_CVol",, "T") -> 937 | L77: 77 | M77: =IFERROR(RANK($J77,$J$1:J$78)+COUNTIF($J$1:J77,J77)-1,"") ->  | N77: S.US.WM
A78: S.US.XYL | B78: 1 | C78: S.US.XYL | D78: =RTD("cqg.rtd", ,"ContractData",C78, "LongDescription",, "T") -> Xylem, Inc. | H78: =RTD("cqg.rtd", ,"ContractData",C78, "LastTradeToday",, "T") ->  | I78: =RTD("cqg.rtd", ,"ContractData",C78, "NetLastTradeToday",, "T") ->  | J78: =IFERROR(RTD("cqg.rtd", ,"ContractData",C78, "PerCentNetLastTrade",, "T")/100,"") ->  | K78: =RTD("cqg.rtd", ,"ContractData", C78, "T_CVol",, "T") -> 75 | L78: 78 | M78: =IFERROR(RANK($J78,$J$1:J$78)+COUNTIF($J$1:J78,J78)-1,"") ->  | N78: S.US.XYL
B99: =SUM(B1:B98)/78 -> 1
